Cogmind - Beta 16.1 @@@ ROGUE MODE // 2026.02.28 @ 01:02:20 Player: alice_fexa Result: Defending 0bPrime! Performance ------------- Evolutions (7) 3500 Regions Visited (25) 5000 Robots Destroyed (260) 1300 Value Destroyed (7241) 7241 Prototype IDs (173) 3460 Alien Tech Used (5) 1000 Bonus (33310) 33310 TOTAL SCORE: 54811 Bonus ------- High Alert Combat Kills 170 Follower Combat Kills 1266 Hunted by Unchained 1000 Destroyed Unchained 1000 Registered with UFD 300 Met Optimus in HQ 500 Met Imprinter 300 Met Zhirov 300 Destroyed Superfortress 15000 Met Optimus at Protoforge 1000 Executed Drillbomb Mission 10000 Win 3000 Friendly Fire -526 Cogmind --------- Core Integrity 212/1300 Matter 300/300 Energy 220/220 System Corruption 25% Temperature Cool (0) Movement Flying (26) Location 0bPrime Parts ------- > --- POWER (2) -------- Light Antimatter Reactor Micro Antimatter Reactor > --- PROPULSION (6) --- Impulse Thruster Array Impulse Thruster Array Experimental Surge Thruster Experimental Surge Thruster > --- UTILITY (11) ----- Experimental Heat Sink Experimental Heat Sink Medium Storage Unit Plexus Tether Experimental Optical Array Advanced Signal Interpreter Experimental Targeting Computer Experimental Reaction Control System Experimental Reaction Control System Experimental Weapon Shielding Centrium Light Armor Plating > --- WEAPON (2) ------- Plasma Lance > --- INVENTORY (10) --- Experimental Surge Thruster Concept Chromion Battery (800) Peak State ------------ > --- POWER ------------ Micro Antimatter Reactor Concept Zero-point Core > --- PROPULSION ------- Impulse Thruster Array Impulse Thruster Array Experimental Surge Thruster Experimental Surge Thruster > --- UTILITY ---------- Experimental Heat Sink Medium Storage Unit Plexus Tether Experimental Optical Array Long-range Sensor Array Advanced Signal Interpreter Experimental Targeting Computer Experimental Melee Analysis Suite Experimental Reaction Control System Experimental Cloaking Device Centrium Light Armor Plating > --- WEAPON ----------- Compact Linear Accelerator Impact Mace > --- INVENTORY -------- UFD Drillbomb [Rating: 180] Favorites ----------- Power Fusion Reactor Engine Cooled Ion Engine Power Core Fission Core Reactor Fusion Reactor Propulsion Light Treads Treads Light Treads Wheel Wheel Hover Unit Cooled Gravmag System Flight Unit Impulse Thruster Array Utility Advanced Signal Interpreter Device Deep Structural Scanner Storage Medium Storage Unit Processor Advanced Signal Interpreter Hackware Advanced Hacking Suite Protection Centrium Light Armor Plating Weapon Advanced Beam Cannon Energy Gun Beamcaster Energy Cannon Advanced Beam Cannon Ballistic Gun Minigun Ballistic Cannon Mass Driver Launcher Rocket Launcher Special Weapon Advanced Remote Datajack Impact Weapon Shock Maul Slashing Weapon Molecular Scythe Piercing Weapon CR-A16's Pointy Stick Special Melee Weapon Advanced Datajack Build | -11 -10 -10 -9 -9 -9 -9 -6 -6 -6 -6 -5 -5 -5 -5 -5 -5 -5 -4 -4 -4 -4 -4 -3 -3 -3 ------- Run | Yrd Mat Min Mat Sto Rec Scr Fac Low Low Zio Pro Fac Was Fac Upp Upp Zhi Pro Fac Was Fac Ext Res Qua Frg Slots Evolved 14 | . . . 2 . . . 6 . . . . 2 . . . . . . 2 . . . 2 . . Power 1 | . . . . . . . . . . . . . . . . . . . 1 . . . . . . Propulsion 4 | . . . 1 . . . 1 . . . . 1 . . . . . . . . . . 1 . . Utility 9 | . . . 1 . . . 5 . . . . 1 . . . . . . 1 . . . 1 . . Weapon . | . . . . . . . . . . . . . . . . . . . . . . . . . . Parts Attached 245 | 7 11 8 13 12 4 9 38 2 . 4 1 2 . 14 . 1 3 1 15 1 3 8 22 9 57 Power 31 | 1 . 1 2 . . . 6 1 . . . . . 3 . . 1 . 1 1 . 2 5 1 6 Engine 13 | 1 . 1 2 . . . 4 . . . . . . 3 . . . . 1 . . 1 . . . Core 4 | . . . . . . . 2 1 . . . . . . . . . . . . . . . . 1 Reactor 14 | . . . . . . . . . . . . . . . . . 1 . . 1 . 1 5 1 5 Propulsion 74 | 2 2 2 6 5 3 3 13 . . . . . . 5 . . 2 1 4 . . . 7 3 16 Treads 18 | 2 . . 6 5 3 2 . . . . . . . . . . . . . . . . . . . Leg . | . . . . . . . . . . . . . . . . . . . . . . . . . . Wheel 7 | . 2 2 . . . 1 2 . . . . . . . . . . . . . . . . . . Hover 24 | . . . . . . . 5 . . . . . . 5 . . 2 1 4 . . . 7 . . Flight 25 | . . . . . . . 6 . . . . . . . . . . . . . . . . 3 16 Utility 87 | 1 4 2 2 1 1 2 13 1 . 3 . 2 . 4 . . . . 9 . 2 4 7 3 26 Device 37 | . 2 2 1 . . . 5 . . 1 . 1 . 2 . . . . 2 . 1 4 3 1 12 Storage 7 | 1 2 . . 1 . . . . . . . 1 . . . . . . . . . . 1 1 . Processor 18 | . . . . . 1 2 3 . . . . . . . . . . . 2 . . . 2 1 7 Hackware 12 | . . . . . . . 3 1 . 2 . . . 2 . . . . 3 . 1 . . . . Protection 13 | . . . 1 . . . 2 . . . . . . . . . . . 2 . . . 1 . 7 Artifact . | . . . . . . . . . . . . . . . . . . . . . . . . . . Weapon 53 | 3 5 3 3 6 . 4 6 . . 1 1 . . 2 . 1 . . 1 . 1 2 3 2 9 Energy Gun 11 | 2 3 3 1 1 . . . . . . . . . . . . . . . . . . . . 1 Energy Cannon 6 | . . . 1 1 . 1 1 . . . . . . 1 . . . . . . . . 1 . . Ballistic Gun 9 | 1 . . . 1 . 2 . . . . . . . . . . . . . . . . . . 5 Ballistic Cannon 2 | . . . . . . . . . . . . . . . . . . . . . . 1 . . 1 Launcher 6 | . 2 . 1 2 . . . . . . . . . . . . . . . . . 1 . . . Special Weapon 2 | . . . . . . . . . . . 1 . . . . . . . . . . . 1 . . Impact Weapon 5 | . . . . . . . 4 . . . . . . . . . . . . . . . . 1 . Slashing Weapon 5 | . . . . . . 1 . . . . . . . 1 . 1 . . 1 . 1 . . . . Piercing Weapon 5 | . . . . . . . 1 . . 1 . . . . . . . . . . . . . 1 2 Special Melee Weapon 2 | . . . . 1 . . . . . . . . . . . . . . . . . . 1 . . Unidentified Prototypes 18 | . . . 3 3 . . 1 . . . . . . 1 . . 3 . 1 1 1 1 . 1 2 Parts Lost 53 | . 1 5 . . . . 6 . . . . . . 4 . . . 1 2 . . 3 18 . 13 Power 10 | . . 1 . . . . 1 . . . . . . 2 . . . . . . . . 3 . 3 Propulsion 19 | . . 2 . . . . 5 . . . . . . 1 . . . 1 2 . . . 7 . 1 Utility 18 | . . 1 . . . . . . . . . . . 1 . . . . . . . 3 5 . 8 Weapon 6 | . 1 1 . . . . . . . . . . . . . . . . . . . . 3 . 1 Highest Loss Streak 8 | . 1 1 . . . . 3 . . . . . . 2 . . . 1 1 . . 1 8 . 4 To Critical Strikes 1 | . . . . . . . . . . . . . . . . . . . . . . . 1 . . Average Backups 12 | 2 18 24 24 24 24 22 5 5 5 5 5 5 6 9 8 10 10 9 9 10 9 9 13 10 2 Power 1 | . 2 2 2 2 2 1 1 1 1 1 1 1 1 1 1 1 1 1 . 1 1 . 1 1 . Propulsion 1 | 1 2 . 2 4 4 3 . . . . . . . 1 . . . . 1 1 . 1 1 . . Utility 3 | . 3 5 4 3 3 5 1 1 1 1 1 1 2 3 3 5 5 5 5 5 5 5 6 3 . Weapon 5 | . 10 15 14 13 14 11 1 2 2 2 2 2 2 2 3 3 2 2 2 2 2 2 2 2 . Tool/Special . | . . . . . . . . . . . . . . . . . . . . . . . . . . Unused Backups 71 | . 4 1 19 3 . 8 10 . . . . . . 5 1 . . . 1 2 1 . 2 6 8 Power 16 | . 1 1 3 . . . 3 . . . . . . 2 1 . . . . 1 . . . 2 2 Propulsion 6 | . . . . . . 3 . . . . . . . 1 . . . . . 1 . . 1 . . Utility 9 | . . . 2 . . . 1 . . . . . . 1 . . . . 1 . . . . 2 2 Weapon 34 | . 3 . 14 3 . 5 6 . . . . . . . . . . . . . 1 . . 2 . Tool/Special 6 | . . . . . . . . . . . . . . 1 . . . . . . . . 1 . 4 Average Slot Usage (%) 92 | . 99 99 98 99 99 93 79 86 86 86 86 80 82 88 94 93 96 99 99 100 100 99 93 82 82 Engine 5 | . 14 14 11 11 11 10 3 . . . . . . . 5 5 2 . 5 5 5 4 . . . Core 1 | . . . . . . . 1 6 6 6 6 5 5 4 . . . . . . . . . . 2 Reactor 2 | . . . . . . . . . . . . . . . . . 2 5 5 5 5 5 8 9 4 Treads 9 | . 22 14 28 33 33 32 . . . . . . . . . . . . . . . . . . . Wheel 1 | . 5 13 4 . . . . . . . . . . . . . . . . . . . . . . Hover 9 | . . . . . . . 4 13 13 13 13 11 11 17 23 23 26 28 26 26 26 26 22 4 . Flight 3 | . . . . . . . 12 . . . . . . . . . . . . . . . . 10 17 Device 16 | . 13 14 21 21 12 10 20 21 20 20 20 20 17 16 17 17 16 17 14 15 15 12 21 19 15 Storage 6 | . 14 14 11 11 11 10 . . . . . 1 5 5 5 5 5 5 5 5 5 5 4 4 4 Processor 9 | . . . . . 9 10 8 13 13 13 13 11 11 11 11 11 11 11 10 10 10 10 10 12 20 Hackware 9 | . . . . . . . 12 18 20 20 20 17 17 16 17 17 17 17 20 21 21 20 14 14 4 Energy Gun 3 | . 27 28 14 . . . . . . . . . . . . . . . . . . . . . . Energy Cannon 3 | . . . 7 21 22 5 . 1 5 . 2 4 5 1 . 1 . 4 4 5 5 1 2 . . Ballistic Gun 1 | . . . . . . 9 . . . . . . . . . . . . . . . . . . . Impact Weapon 1 | . . . . . . . 4 6 6 6 6 5 5 4 5 3 2 . . . . . . 1 1 Slashing Weapon 2 | . . . . . . 2 4 . . . . . . 1 5 5 5 5 5 5 5 4 3 . . Peak Build Rating 180 | 6 12 17 26 29 24 27 76 76 76 76 78 84 80 93 92 91 96 98 117 122 121 122 151 143 180 Average Rating 78 | 3 10 16 23 23 22 24 50 74 75 74 75 80 79 86 90 90 93 97 113 117 118 118 138 131 159 On Entrance 70 | . 6 12 17 25 24 22 24 76 74 76 74 78 79 80 82 91 91 94 98 117 118 121 115 111 133 Avg Prop Armor Cover (%) 12 | . 13 13 18 . . 37 3 . . . . . . 5 . . . . . . . . . 6 . Naked Turns . | . . . . . . . . . . . . . . . . . . . . . . . . . . Heaviest Build 100 | 14 89 94 100 100 99 98 28 28 27 27 30 40 40 41 36 42 36 41 57 55 57 60 76 60 48 Greatest Support 88 | 40 40 16 60 60 60 63 40 40 40 40 40 40 40 47 55 55 55 55 59 59 59 74 88 61 52 Greatest Overweight (x) 9 | . 8 9 9 1 1 9 1 . . . . . . . . . . . . . . 1 . . 1 Average Overweight (x) . | . 3 5 3 1 1 1 . . . . . . . . . . . . . . . . . . . Largest Inventory Capacity 25 | 8 25 25 25 25 25 25 25 5 5 5 5 10 10 10 10 10 10 10 10 10 10 10 15 15 10 Average Capacity 14 | 6 20 25 25 25 25 24 5 5 5 5 5 6 10 10 10 10 10 10 10 10 10 10 14 11 10 Most Carried 25 | 5 25 25 25 25 25 25 25 5 5 5 5 6 7 10 10 10 10 10 10 10 10 10 15 15 10 Average Carried 13 | 3 18 24 24 24 25 23 5 5 5 5 5 5 6 9 8 10 9 9 9 10 9 9 14 10 7 Final Capacity 25 | 8 25 25 25 25 25 25 5 5 5 5 5 10 10 10 10 10 10 10 10 10 10 10 15 10 10 Final Carried 25 | 4 25 25 25 25 25 25 5 5 5 5 5 6 7 9 10 10 10 10 10 10 10 10 11 10 2 Class Distribution -------------------- 41% | Hacker-Ninja 28% | Mutant 8% | Hacker-Scout 6% | Scavenger-Mutant 6% | Scavenger-Ninja Dominant Class ---------------- Mutant | -10/Materials Scavenger-Mutant | -10/Mines Scavenger-Mutant | -9/Materials Mutant | -9/Storage Mutant | -9/Recycling Mutant | -9/Scraptown Hacker-Scout | -6/Factory Hacker-Scout | -6/Lower Caves Hacker-Scout | -6/Lower Caves Hacker-Scout | -6/Zion Hacker-Ninja | -5/Proximity Caves Hacker-Ninja | -5/Factory Hacker-Ninja | -5/Waste Hacker-Ninja | -5/Factory Hacker-Ninja | -5/Upper Caves Hacker-Ninja | -5/Upper Caves Hacker-Ninja | -5/Zhirov Hacker-Ninja | -4/Proximity Caves Hacker-Ninja | -4/Factory Hacker-Ninja | -4/Waste Hacker-Ninja | -4/Factory Hacker-Ninja | -4/Extension Hacker-Ninja | -3/Research Hacker-Ninja | -3/Quarantine Scavenger-Ninja | -3/Protoforge Resources | -11 -10 -10 -9 -9 -9 -9 -6 -6 -6 -6 -5 -5 -5 -5 -5 -5 -5 -4 -4 -4 -4 -4 -3 -3 -3 ----------- Run | Yrd Mat Min Mat Sto Rec Scr Fac Low Low Zio Pro Fac Was Fac Upp Upp Zhi Pro Fac Was Fac Ext Res Qua Frg Matter Collected 6565 | 273 425 85 245 247 72 120 577 90 32 27 141 7 . 507 136 45 93 129 308 42 70 606 375 386 1527 Remotely . | . . . . . . . . . . . . . . . . . . . . . . . . . . Salvage Created 11548 | 97 826 713 965 593 146 . 1339 48 . . 5 31 . 931 124 . 181 5 1036 . 326 1104 734 434 1910 Parts 471 | 1 47 27 61 34 8 . 41 . . . . 3 . 38 5 . 1 . 50 . 7 46 27 11 64 Haulers Intercepted 24 | . 2 . 4 5 . . 3 . . . . . . 3 . . . . 3 . . 2 1 1 . Recyclers Shooed 6 | . 1 2 . . . . 1 . . . . . . 1 . . . . . . 1 . . . . Parts Field Recycled . | . . . . . . . . . . . . . . . . . . . . . . . . . . Retrieved Matter . | . . . . . . . . . . . . . . . . . . . . . . . . . . Parts Self-Destructed 5 | . . . . . . . . 1 . . 4 . . . . . . . . . . . . . . Prevented . | . . . . . . . . . . . . . . . . . . . . . . . . . . Parts Restored . | . . . . . . . . . . . . . . . . . . . . . . . . . . Kills | -11 -10 -10 -9 -9 -9 -9 -6 -6 -6 -6 -5 -5 -5 -5 -5 -5 -5 -4 -4 -4 -4 -4 -3 -3 -3 ------- Run | Yrd Mat Min Mat Sto Rec Scr Fac Low Low Zio Pro Fac Was Fac Upp Upp Zhi Pro Fac Was Fac Ext Res Qua Frg Combat Hostiles Destroyed 122 | . 19 13 17 8 1 . 3 . . . 1 3 . 7 . . . 2 4 . . 7 10 . 27 Melee 36 | . . . . . . . 2 . . . . . . 3 . . . . 4 . . 3 4 . 20 Guns 38 | . 9 13 10 . . . . . . . . . . . . . . . . . . . . . 6 Cannons 12 | . . . 2 7 1 . . . . . . . . . . . . . . . . 1 . . 1 AOE 34 | . 10 . 5 . . . . . . . 1 3 . 4 . . . 2 . . . 3 6 . . Classes Destroyed 19 | 1 7 1 2 . . . 2 1 . . 1 . . . . . . . . . . . . . 4 Worker 20 | . 3 . 4 . . . 2 . . . . . . 4 . . . . 3 . 2 . 1 . 1 Builder 18 | . 1 . 2 . . . 1 . . . . 1 . 4 . . . . 2 . . 3 1 2 1 Tunneler 2 | . . 1 . . . . 1 . . . . . . . . . . . . . . . . . . Hauler 24 | . 2 . 4 5 . . 3 . . . . . . 3 . . . . 3 . . 2 1 1 . Recycler 21 | 1 2 3 1 . 1 . 5 . . . . . . 1 . . . . 1 . 1 2 1 2 . Mechanic 10 | . . . . . . . 1 . . . . . . 1 . . . . 1 . . . . 1 6 Operator 9 | . 1 . . 1 . . 3 . . . . . . . . . . . . . . 2 . . 2 Drone 19 | . . . . . . . . . . . 1 . . . . . . 2 . . . . 3 . 13 Watcher 31 | . 2 . 2 . . . 5 . . . . . . 4 . . . . 7 . 4 2 3 . 2 Swarmer 24 | . 6 3 4 1 . . . . . . . 2 . 4 . . . . . . . 2 . . 2 Grunt 43 | . 13 10 9 3 . . . . . . . 1 . . . . . . . . . 3 . . 4 Brawler 3 | . . . 1 . . . . . . . . . . . . . . . . . . 1 . . 1 Researcher 1 | . . . . . . . . . . . . . . . . . . . . . . . . . 1 Sentry 9 | . . . 3 4 1 . . . . . . . . . . . . . . . . 1 . . . Programmer 19 | . . . . . . . 3 . . . . . . 3 . . . . 4 . . . 7 . 2 Hotshot 2 | . . . . . . . . . . . . . . . . . . . . . . . . . 2 Striker 3 | . . . . . . . . . . . . . . . . . . . . . . . . . 3 Elite 1 | . . . . . . . . . . . . . . . . . . . . . . . . . 1 Scrapoid 1 | . . . . . . . . . . . . . . . . . . . . . . . . . 1 Samaritan 4 | . . . . . . . . 1 . . . . . . 3 . . . . . . . . . . Best Kill Streak 11 | 1 7 5 11 4 1 . 2 . . . 1 4 . 4 . . . 2 3 . 1 4 4 2 5 Combat Bots Only 6 | . 5 5 6 4 1 . 1 . . . 1 3 . 4 . . . 2 2 . . 4 3 . 5 Max Kills in Single Turn 3 | 1 3 1 3 1 1 . 1 1 . . 1 2 . 2 1 . . 2 1 . 1 3 3 1 1 Gunslinging . | . . . . . . . . . . . . . . . . . . . . . . . . . . Exploded 3 | . 3 . 2 . . . . . . . 1 2 . 2 . . . 2 . . . 3 3 . . Melee 1 | . . . . . . . 1 . . . . . . 1 . . . . 1 . . 1 1 . 1 Uniques/NPCs Destroyed 1 | . . . . . . . . . . . . . . . . . . . . . . 1 . . . DW-4LL (-4/Extension) Combat | -11 -10 -10 -9 -9 -9 -9 -6 -6 -6 -6 -5 -5 -5 -5 -5 -5 -5 -4 -4 -4 -4 -4 -3 -3 -3 -------- Run | Yrd Mat Min Mat Sto Rec Scr Fac Low Low Zio Pro Fac Was Fac Upp Upp Zhi Pro Fac Was Fac Ext Res Qua Frg Hostile Shots Fired 825 | . 60 62 44 27 2 . 47 2 . . 2 20 . 62 . 2 . 3 18 . . 45 159 4 266 Missed 367 | . 16 19 15 7 . . 17 . . . 2 8 . 28 . 2 . 2 10 . . 17 62 1 161 Hits 458 | . 44 43 29 20 2 . 30 2 . . . 12 . 34 . . . 1 8 . . 28 97 3 105 Melee 1 | . . . . . . . . . . . . . . . . . . . . . . . . . 1 Projectile 457 | . 44 43 29 20 2 . 30 2 . . . 12 . 34 . . . 1 8 . . 28 97 3 104 AOE 5 | . . . . . . . . . . . . . . 1 . . . . 1 . . . 3 . . Critical Strikes 46 | . . 2 1 . . . . 1 . . . 1 . . . . . . 2 . . 2 24 . 13 Part Disruptions 7 | . . . . . . . . . . . . . . . . . . . . . . . 7 . . Damage Taken 10418 | . 476 549 377 364 28 . 422 42 . . . 192 . 821 . . . 32 425 . 75 569 2455 45 3546 Core 1792 | . 80 57 33 60 15 . 99 . . . . 13 . 161 . . . 7 132 . 25 83 322 45 660 Absorbed by Shields 33 | . . . . . . . . . . . . . . . . . . . . . . 33 . . . Regen/Repaired (Parts) 682 | . 63 . 61 107 . . 178 . . . . . . . . . . . . 3 176 . . 94 . Core Remaining (%) 67 | 100 . 45 . . . 73 . . . . 88 . . . . . . 74 . . . 79 . . 16 Volleys Fired 489 | 1 76 60 46 47 4 . 1 . 10 . 5 9 . 16 . 4 . 14 39 . 14 49 27 13 54 Largest 2 | 2 2 2 2 2 2 . 1 . 1 . 1 1 . 1 . 1 . 1 1 . 1 1 1 1 1 Hottest 143 | 70 90 140 143 136 136 . 90 . 90 . 90 33 . 98 . 98 . 98 98 . 98 49 110 110 94 Shots Fired 707 | 2 144 116 87 91 8 . 1 1 10 1 5 9 . 17 . 4 . 16 40 . 14 49 27 13 52 Gun 357 | 2 136 116 54 . . . . . . . . . . . . . . . . . . . . . 49 Cannon 310 | . . . 28 89 8 . 1 1 10 1 4 . . 13 . 4 . 13 40 . 14 48 20 13 3 Launcher 40 | . 8 . 5 2 . . . . . . 1 9 . 4 . . . 3 . . . 1 7 . . Special . | . . . . . . . . . . . . . . . . . . . . . . . . . . Kinetic 103 | 1 . . . . . . . . . . . . . . . . . . . . . 48 2 . 52 Thermal 564 | 1 136 116 82 89 8 . 1 1 10 1 4 . . 13 . 4 . 13 40 . 14 . 18 13 . Explosive 38 | . 8 . 5 . . . . . . . 1 9 . 4 . . . 3 . . . 1 7 . . Electromagnetic 2 | . . . . 2 . . . . . . . . . . . . . . . . . . . . . Robot Hit Streak 24 | 2 10 7 8 10 8 . . . . 9 . 12 . 1 . . . . 2 . 3 10 2 . 24 Robot Miss Streak 5 | . 4 3 3 4 . . . . . . . 1 . 1 . . . . . . . 3 5 . 2 Penetration Max 1 | . . . . . . . . . . . . . . . . . . . . . . 1 . . 1 Secondary Targets 1 | . . . 1 . . . . . . . . . . . . . . . . . . . . . . Max Gunslinging Chain 1 | . . . 1 . . . . . . . . . . . . . . . . . . . . . . Shots Hit Robots 618 | 2 82 78 56 54 7 . 47 3 . 1 . 7 . 37 5 . 4 . 41 . 10 53 33 8 90 Core Hits 285 | 2 51 27 33 18 2 . 12 1 . . 1 8 . 16 2 . 3 2 19 . 4 23 23 2 36 Critical Kills 8 | . . . . 1 . . . . . . . . . 2 . . . . . . . . . . 5 Critical Parts Destroyed 14 | . . . . . . . 4 . . . . . . 5 1 . . . . . . . . 1 3 Critical Strikes 59 | . 5 4 5 1 . . 4 . . . . . . 11 2 . . . 3 . . 5 2 1 16 Burn 14 | . 5 4 5 . . . . . . . . . . . . . . . . . . . . . . Meltdown 1 | . . . . 1 . . . . . . . . . . . . . . . . . . . . . Destroy 7 | . . . . . . . . . . . . . . . . . . . . . . . . . 7 Blast 2 | . . . . . . . . . . . . . . . . . . . . . . 2 . . . Smash 14 | . . . . . . . 4 . . . . . . 7 1 . . . . . . . . 1 1 Sever 13 | . . . . . . . . . . . . . . 4 1 . . . 3 . . 3 2 . . Impale 8 | . . . . . . . . . . . . . . . . . . . . . . . . . 8 Melee Attacks 567 | . . . . 1 . . 118 3 5 1 3 4 . 76 8 1 4 1 78 . 32 39 80 26 87 Impact 137 | . . . . . . . 65 . 4 . 3 4 . 37 2 . . . . . . . . 6 16 Slashing 296 | . . . . . . . 52 . . . . . . 24 6 1 . . 76 . 32 33 72 . . Piercing 126 | . . . . . . . 1 3 1 1 . . . 15 . . 4 1 2 . . 6 1 20 71 Sneak Attacks 120 | . . . . 1 . . 17 3 . . . . . 18 5 . . . 17 . 6 9 6 8 30 Combat Hostiles 2 | . . . . . . . . . . . . . . . . . . . . . . . 1 . 1 Follow-up Attacks 13 | . . . . . . . 3 . . . . . . 5 1 . . . 1 . . 2 . . 1 Damage Inflicted 30281 | 23 1801 1211 1682 1287 153 . 2691 216 . 36 53 547 . 2864 445 . 280 94 2899 . 940 3270 2931 664 6194 Guns 4450 | 23 985 1211 912 . . . . . . . . . . . . . . . . . . . . . 1319 Cannons 2897 | . . . 314 1123 153 . . . . 36 . . . . . . . . 32 . 34 1065 . . 140 Explosions 3815 | . 816 . 456 164 . . . . . . 53 491 . 284 . . . 94 . . . 363 1094 . . Melee 19119 | . . . . . . . 2691 216 . . . 56 . 2580 445 . 280 . 2867 . 906 1842 1837 664 4735 Ramming . | . . . . . . . . . . . . . . . . . . . . . . . . . . Kinetic 2535 | 11 . . . . . . . . . . . . . . . . . . . . . 1065 . . 1459 Thermal 4812 | 12 985 1211 1226 1123 153 . . . . 36 . . . . . . . . 32 . 34 . . . . Explosive 3651 | . 816 . 456 . . . . . . . 53 491 . 284 . . . 94 . . . 363 1094 . . Electromagnetic 164 | . . . . 164 . . . . . . . . . . . . . . . . . . . . . Impact 4500 | . . . . . . . 1570 . . . . 56 . 1596 130 . . . . . . . . 188 960 Slashing 9500 | . . . . . . . 1121 . . . . . . 612 315 . . . 2867 . 906 1842 1837 . . Piercing 5119 | . . . . . . . . 216 . . . . . 372 . . 280 . . . . . . 476 3775 Highest Corruption 25 | . . . . 2 2 . 6 6 6 6 . 1 8 11 11 11 11 11 1 1 1 . 22 22 25 Average Corruption 10 | . . . . 2 2 . 5 6 6 6 . 1 6 8 11 11 11 11 1 1 1 . 12 22 22 Corruption Purged 1 | . . . . . . . . . . . . . . . . . . . . . 1 . . . . Corruption Blocked . | . . . . . . . . . . . . . . . . . . . . . . . . . . Effects 508 | . . . . 8 11 . 42 9 18 1 . 1 3 65 14 18 4 22 9 2 . . 18 38 225 Message Errors 106 | . . . . 1 1 . 12 . 2 . . . . 19 2 8 2 7 1 1 . . 3 9 38 Matter Fused 121 | . . . . 4 4 . 13 2 5 . . . . 17 2 3 2 4 3 1 . . 4 9 48 Heat Flow Errors 53 | . . . . 1 1 . 8 . 5 . . 1 . 4 3 3 . 2 2 . . . . 5 18 Energy Discharges 63 | . . . . 1 3 . 3 3 5 . . . . 8 6 1 . 1 1 . . . 1 5 25 Parts Rejected 9 | . . . . . . . 1 . . . . . 1 1 . . . . . . . . 1 . 5 Parts Fused 9 | . . . . . . . 1 . . . . . . 3 1 . . . . . . . 1 1 2 Data Loss (minor) 56 | . . . . . 1 . 3 1 . . . . 1 6 . 3 . 5 1 . . . 3 2 30 Data Loss (major) 24 | . . . . 1 1 . . 1 1 . . . 1 5 . . . 1 . . . . 1 3 9 Misfires 7 | . . . . . . . . 1 . 1 . . . 1 . . . 2 1 . . . . 1 . Alerts 6 | . . . . . . . 1 1 . . . . . . . . . . . . . . . 2 2 Misdirections 52 | . . . . . . . . . . . . . . 1 . . . . . . . . 4 . 47 Weapon Failures 2 | . . . . . . . . . . . . . . . . . . . . . . . . 1 1 Overload Shots . | . . . . . . . . . . . . . . . . . . . . . . . . . . Overflow Damage 5287 | . 12 . 32 5 . . 730 33 . . . 49 . 974 164 . 54 7 404 . 297 394 378 279 1475 Projectiles 80 | . . . 12 5 . . . . . . . . . . . . . . 7 . 4 52 . . . Explosions 105 | . 12 . 20 . . . . . . . . 19 . . . . . 7 . . . . 47 . . Melee 5102 | . . . . . . . 730 33 . . . 30 . 974 164 . 54 . 397 . 293 342 331 279 1475 Knockbacks 19 | . . . . . . . 8 . . . . . . 3 1 . . . . . . 2 . . 5 Impact 17 | . . . . . . . 8 . . . . . . 3 1 . . . . . . . . . 5 Kinetic 2 | . . . . . . . . . . . . . . . . . . . . . . 2 . . . Secondary . | . . . . . . . . . . . . . . . . . . . . . . . . . . Self-Inflicted Damage 240 | . 11 . 47 . . . . . . . . . . . . . . 32 . . . . 150 . . Shots 7 | . 1 . 2 . . . . . . . . . . . . . . 1 . . . . 3 . . Rammed . | . . . . . . . . . . . . . . . . . . . . . . . . . . Targets Rammed . | . . . . . . . . . . . . . . . . . . . . . . . . . . Kicked . | . . . . . . . . . . . . . . . . . . . . . . . . . . Crushed . | . . . . . . . . . . . . . . . . . . . . . . . . . . Highest Temperature 397 | 9 27 327 204 208 71 . 397 48 320 40 80 180 . 267 290 253 . 267 163 . 82 2 106 185 216 Average Temperature 75 | 6 6 77 84 118 47 . 103 25 99 25 35 96 . 81 146 99 . 58 39 . 25 2 42 95 78 Received Heat Transfer 1266 | . 207 333 150 138 9 . 12 36 . . . 36 . 39 . . . . 48 . . 72 . . 186 Effects 4 | . . 2 . . . . 1 . . . . . . . 1 . . . . . . . . . . Shutdowns 1 | . . . . . . . 1 . . . . . . . . . . . . . . . . . . Energy Bleed 1 | . . . . . . . . . . . . . . . 1 . . . . . . . . . . Interference 2 | . . 2 . . . . . . . . . . . . . . . . . . . . . . . Siege Activations . | . . . . . . . . . . . . . . . . . . . . . . . . . . Martial Activations . | . . . . . . . . . . . . . . . . . . . . . . . . . . Shielding Activations . | . . . . . . . . . . . . . . . . . . . . . . . . . . Robots Disrupted . | . . . . . . . . . . . . . . . . . . . . . . . . . . Combat Hostiles . | . . . . . . . . . . . . . . . . . . . . . . . . . . Robots Corrupted 17 | . . . . . . . 8 . . . . . . 4 1 . . . . . . . . 1 3 Combat Hostiles 1 | . . . . . . . 1 . . . . . . . . . . . . . . . . . . Parts Fried 31 | . . . . . . . 12 . . . . . . 11 1 . . . . . . . . 1 6 Impact Corruptions 65 | . . . . . . . 24 . . . . 1 . 18 5 . . . . . . . . 4 13 Robots Melted 1 | . . . . 1 . . . . . . . . . . . . . . . . . . . . . Combat Hostiles 1 | . . . . 1 . . . . . . . . . . . . . . . . . . . . . Parts Melted 25 | . 7 5 7 6 . . . . . . . . . . . . . . . . . . . . . Heat Transferred 10826 | 37 2998 2931 2553 1923 259 . . . . 25 . . . . . . . . 50 . 50 . . . . Parts Sabotaged . | . . . . . . . . . . . . . . . . . . . . . . . . . . Parts Stolen . | . . . . . . . . . . . . . . . . . . . . . . . . . . Parts Stripped . | . . . . . . . . . . . . . . . . . . . . . . . . . . Power Chain Reactions . | . . . . . . . . . . . . . . . . . . . . . . . . . . Alert | -11 -10 -10 -9 -9 -9 -9 -6 -6 -6 -6 -5 -5 -5 -5 -5 -5 -5 -4 -4 -4 -4 -4 -3 -3 -3 ------- Run | Yrd Mat Min Mat Sto Rec Scr Fac Low Low Zio Pro Fac Was Fac Upp Upp Zhi Pro Fac Was Fac Ext Res Qua Frg Maximum Alert Level 4 | . 1 . 1 . . . . . . . . . . . . . . . . . . 2 1 . 4 Low Security (%) 88 | 100 71 100 99 100 100 . 100 . . . . 100 100 100 . . . . 100 100 100 95 87 100 53 Level 1 8 | . 28 . . . . . . . . . . . . . . . . . . . . 3 12 . 30 Level 2 1 | . . . . . . . . . . . . . . . . . . . . . . 1 . . 6 Level 3 1 | . . . . . . . . . . . . . . . . . . . . . . . . . 8 Level 4 . | . . . . . . . . . . . . . . . . . . . . . . . . . 2 Level 5 . | . . . . . . . . . . . . . . . . . . . . . . . . . . High Security . | . . . . . . . . . . . . . . . . . . . . . . . . . . Max Security . | . . . . . . . . . . . . . . . . . . . . . . . . . . Peak Influence 1216 | 5 302 165 207 132 37 . 70 . . . . 105 25 134 . . . . 88 42 41 546 286 85 1216 Initial 286 | . . 95 . 7 7 . . . . . . . 25 . . . . . . 4 . 16 286 78 . Average 81 | 1 114 57 92 29 3 . 10 . . . . 43 7 61 . . . . 10 7 3 77 96 22 258 Influence Increases 8270 | 5 761 388 541 375 92 . 459 . . . 138 134 . 546 . . . 25 464 64 239 1390 605 165 1879 Destroy 0b10 Robot/C 2540 | . 380 260 340 160 20 . 80 . . . 80 60 . 140 . . . . 80 . . 500 140 . 300 Destroy 0b10 Robot/NC 800 | 5 55 20 65 30 5 . 105 . . . 5 5 . 85 . . . 10 85 . 35 100 35 30 125 Destroy Leader 638 | . 88 60 72 60 . . 56 . . . 10 . . 44 . . . . 50 . 8 96 38 2 54 Allied During Kill 244 | . . . . . . . 2 . . . 28 . . . . . . . . . . 214 . . . Trap Triggered on 0b10 60 | . . . . . . . . . . . . . . . . . . . . . . . 60 . . Successful Hack 376 | . 34 . 12 49 7 . 30 . . . . 8 . 73 . . . . 43 . 29 15 33 18 25 Select Force Hacks 60 | . . . . . 60 . . . . . . . . . . . . . . . . . . . . Disable Machine 270 | . 30 30 15 30 . . 30 . . . . 15 . . . . . . . . . 60 15 30 15 Destroy Structure 1037 | . 69 18 37 1 . . 36 . . . . 46 . 114 . . . . 116 64 62 170 224 40 40 Partial Spotted 480 | . 15 . . . . . 45 . . . . . . 30 . . . . 75 . 60 30 60 15 150 Lose Combat Pursuer 1665 | . 90 . . 45 . . 75 . . . 15 . . 60 . . . 15 15 . 45 105 . 30 1170 Miscellaneous 100 | . . . . . . . . . . . . . . . . . . . . . . 100 . . . Influence Decreases 7055 | 5 515 634 522 375 111 . 455 4 . . 138 62 72 459 87 . . 25 451 77 206 877 1012 304 664 Entered New Map 605 | . . 151 . 12 12 . . 3 . . . . 47 . 33 . . . . 9 . 17 260 61 . Time Decay 4895 | 5 355 433 372 363 99 . 325 1 . . 58 62 10 399 54 . . 25 326 28 206 448 552 237 537 Lost Part 466 | . 10 50 . . . . 20 . . . . . . 40 . . . . 9 . . 30 180 . 127 Lost Ally 471 | . . . . . . . 40 . . . 80 . 15 20 . . . . 24 40 . 232 20 . . Purge Threat 618 | . 150 . 150 . . . 70 . . . . . . . . . . . 92 . . 150 . 6 . Squads Dispatched 89 | . 4 . . 4 . . 19 . . . . 2 . 10 . . . . 13 . 8 6 15 4 4 Investigation 34 | . 2 . . . . . 6 . . . . 2 . 6 . . . . 5 . 5 3 3 1 1 Extermination 28 | . . . . . . . 5 . . . . . . 4 . . . . 5 . 3 . 8 2 1 Reinforcement 25 | . 2 . . 2 . . 8 . . . . . . . . . . . 3 . . 3 4 1 2 Assault 2 | . . . . 2 . . . . . . . . . . . . . . . . . . . . . Garrison . | . . . . . . . . . . . . . . . . . . . . . . . . . . Intercept . | . . . . . . . . . . . . . . . . . . . . . . . . . . Searches Triggered . | . . . . . . . . . . . . . . . . . . . . . . . . . . Unchained Authorized 1 | . . . . . . . . . . . . . . . . . . . . . . 1 . . . Construction Impeded 2 | . . . . . . . . . . . . . . . . . . . . . . 2 . . . Haulers Reinforced 2 | . . . . . . . 1 . . . . . . . . . . . . . . . 1 . . Active Scanning Responses . | . . . . . . . . . . . . . . . . . . . . . . . . . . Cargo Convoy Interrupts . | . . . . . . . . . . . . . . . . . . . . . . . . . . Stealth | -11 -10 -10 -9 -9 -9 -9 -6 -6 -6 -6 -5 -5 -5 -5 -5 -5 -5 -4 -4 -4 -4 -4 -3 -3 -3 --------- Run | Yrd Mat Min Mat Sto Rec Scr Fac Low Low Zio Pro Fac Was Fac Upp Upp Zhi Pro Fac Was Fac Ext Res Qua Frg Distress Signals 28 | . 5 . 1 3 . . . . . . . . . 1 . . . . 1 . . 3 . 2 12 Communications Jammed 59 | . . . . . . . . . . . . 2 . 7 . . . 1 21 . 10 12 2 . 4 Distress Signals 50 | . . . . . . . . . . . . 2 . 7 . . . . 21 . 2 12 2 . 4 Times Spotted 558 | . 37 13 20 35 2 . 19 1 . . 4 4 6 24 . 1 . 2 22 4 11 37 27 6 283 Peak Tracking Total 34 | . 5 3 5 12 2 . 3 1 . . 1 3 5 8 . 1 . 1 3 2 4 4 7 5 34 Tactical Retreats 59 | . 4 . . 2 . . 3 1 . . 1 . 1 1 . . . 1 4 . 3 6 . 2 30 ECM-based Alert Blocks 6 | . . . . . . . . . . . . . . . . . . . 3 . 2 . . 1 . ID Masks Used 1 | . . . . . . . . . . . . . . . . . . . . . . . . . 1 IFF Responses 52 | . . . . . . . . . . . . . . . . . . . . . . . . . 52 Traps | -11 -10 -10 -9 -9 -9 -9 -6 -6 -6 -6 -5 -5 -5 -5 -5 -5 -5 -4 -4 -4 -4 -4 -3 -3 -3 ------- Run | Yrd Mat Min Mat Sto Rec Scr Fac Low Low Zio Pro Fac Was Fac Upp Upp Zhi Pro Fac Was Fac Ext Res Qua Frg Traps Triggered 20 | . 2 . . 2 . . 1 . . . . 2 . 1 . . . . 3 . 2 5 . 1 1 Indirectly 1 | . . . . 1 . . . . . . . . . . . . . . . . . . . . . Trap Hack Attempts 21 | . . . . . . . . . . . . . . . . . . . . . . . 21 . . Triggered . | . . . . . . . . . . . . . . . . . . . . . . . . . . Disarmed . | . . . . . . . . . . . . . . . . . . . . . . . . . . Reprogrammed 6 | . . . . . . . . . . . . . . . . . . . . . . . 6 . . Reused 6 | . . . . . . . . . . . . . . . . . . . . . . . 6 . . Traps Extracted . | . . . . . . . . . . . . . . . . . . . . . . . . . . Installed . | . . . . . . . . . . . . . . . . . . . . . . . . . . Triggered 6 | . . . . . . . . . . . . . . . . . . . . . . . 6 . . Machines | -11 -10 -10 -9 -9 -9 -9 -6 -6 -6 -6 -5 -5 -5 -5 -5 -5 -5 -4 -4 -4 -4 -4 -3 -3 -3 ---------- Run | Yrd Mat Min Mat Sto Rec Scr Fac Low Low Zio Pro Fac Was Fac Upp Upp Zhi Pro Fac Was Fac Ext Res Qua Frg Machines Disabled 19 | . 2 2 1 2 . . 2 . . . . 1 . . . . . . . . . 5 1 2 1 Max in Single Turn 2 | . 2 2 1 1 . . 1 . . . . 1 . . . . . . . . . . 1 1 1 Garrison Access 10 | . . . . 1 . . 2 . . . . . . 2 . . . . 3 . 2 . . . . Energy Cycler 2 | . . . . . . . . . . . . . . . . . . . . . . 2 . . . Machines Repaired . | . . . . . . . . . . . . . . . . . . . . . . . . . . Machines Dismantled . | . . . . . . . . . . . . . . . . . . . . . . . . . . Machines Sabotaged . | . . . . . . . . . . . . . . . . . . . . . . . . . . Overloaded Fab Kills . | . . . . . . . . . . . . . . . . . . . . . . . . . . Hacking | -11 -10 -10 -9 -9 -9 -9 -6 -6 -6 -6 -5 -5 -5 -5 -5 -5 -5 -4 -4 -4 -4 -4 -3 -3 -3 --------- Run | Yrd Mat Min Mat Sto Rec Scr Fac Low Low Zio Pro Fac Was Fac Upp Upp Zhi Pro Fac Was Fac Ext Res Qua Frg Machines Accessed 166 | . 8 1 3 7 9 2 22 . . . . 2 . 21 . 1 3 . 27 . 19 17 12 7 5 Terminals 87 | . 6 1 2 5 6 . 8 . . . . 1 . 7 . . . . 14 . 8 15 6 4 4 Fabricators 11 | . . . . . . . 3 . . . . . . 3 . . . . 3 . . . 2 . . Repair Stations 8 | . 1 . 1 1 . . 1 . . . . . . . . . . . 1 . 1 . . 2 . Recycling Units 33 | . 1 . . 1 3 . 6 . . . . 1 . 6 . . . . 5 . 5 2 2 . 1 Scanalyzers 11 | . . . . . . . 2 . . . . . . 2 . . . . 1 . 3 . 2 1 . Garrison Access 10 | . . . . . . . 2 . . . . . . 3 . . . . 3 . 2 . . . . Total Hacks 418 | . 22 3 14 25 24 23 49 . . . . 5 . 46 . 1 13 . 65 . 43 35 24 15 11 Successful 279 | . 10 2 8 15 14 23 27 . . . . 3 . 26 . 1 13 . 47 . 37 25 16 7 5 Failed 135 | . 12 1 6 10 10 . 21 . . . . 2 . 19 . . . . 17 . 5 10 8 8 6 Catastrophic 17 | . 4 . . 3 1 . 3 . . . . . . 2 . . . . . . 1 . 1 1 1 Database Lockouts 4 | . . . . . . . 1 . . . . . . 1 . . . . 1 . 1 . . . . Manual 204 | . 18 3 8 10 17 . 27 . . . . 2 . 25 . . . . 36 . 19 12 10 8 9 Terminals 218 | . 18 3 12 16 17 . 16 . . . . 3 . 15 . . . . 34 . 20 32 13 9 10 Fabricators 29 | . . . . . . . 7 . . . . . . 7 . . . . 11 . . . 4 . . Repair Stations 22 | . 2 . 2 6 . . 5 . . . . . . . . . . . 1 . 2 . . 4 . Recycling Units 69 | . 2 . . 3 7 . 12 . . . . 2 . 15 . . . . 11 . 10 3 3 . 1 Scanalyzers 29 | . . . . . . . 7 . . . . . . 4 . . . . 3 . 9 . 4 2 . Garrison Access 14 | . . . . . . . 2 . . . . . . 5 . . . . 5 . 2 . . . . Terminal Hacks 118 | . 2 2 4 2 2 23 3 . . . . 1 . 5 . 1 13 . 18 . 11 19 7 2 3 Record 22 | . . . . . . 17 . . . . . . . . . . 5 . . . . . . . . Part Schematic 1 | . . . . . . . . . . . . . . . . . . . 1 . . . . . . Robot Analysis 14 | . . 2 1 . 1 6 . . . . . . . . . . 4 . . . . . . . . Prototype ID Bank 9 | . . . . . 1 . . . . . . . . 1 . . 4 . . . 1 2 . . . Open Door 12 | . . . . . . . . . . . . . . . . 1 . . 1 . . 9 1 . . Branch Access Points 4 | . . . 1 . . . 1 . . . . . . 1 . . . . . . 1 . . . . Terminal Index 2 | . . . . . . . . . . . . 1 . . . . . . . . . . 1 . . Recycling Unit Index 1 | . . . . . . . . . . . . . . . . . . . . . 1 . . . . Alert Level 1 | . . . . 1 . . . . . . . . . . . . . . . . . . . . . Unreport Threat 7 | . 1 . 1 . . . 1 . . . . . . . . . . . 1 . . 2 . 1 . Locate Traps 26 | . 1 . 1 1 . . 1 . . . . . . 2 . . . . 8 . 5 2 3 . 2 Recall Investigation 2 | . . . . . . . . . . . . . . . . . . . . . . 2 . . . Recall Extermination 2 | . . . . . . . . . . . . . . . . . . . 1 . 1 . . . . Registered Prototypes 2 | . . . . . . . . . . . . . . . . . . . 1 . . . 1 . . Zone Layout 13 | . . . . . . . . . . . . . . 1 . . . . 5 . 2 2 1 1 1 Fabricator Hacks 9 | . . . . . . . 2 . . . . . . 3 . . . . 2 . . . 2 . . Network Status 9 | . . . . . . . 2 . . . . . . 3 . . . . 2 . . . 2 . . Repair Station Hacks 19 | . 2 . 2 6 . . 4 . . . . . . . . . . . 1 . 2 . . 2 . Scan Component 10 | . 1 . 1 3 . . 2 . . . . . . . . . . . 1 . 1 . . 1 . Repair 9 | . 1 . 1 3 . . 2 . . . . . . . . . . . . . 1 . . 1 . Recycling Unit Hacks 18 | . . . . . 2 . 1 . . . . . . 4 . . . . 4 . 5 1 1 . . Retrieve Components 18 | . . . . . 2 . 1 . . . . . . 4 . . . . 4 . 5 1 1 . . Scanalyzer 17 | . . . . . . . 3 . . . . . . 3 . . . . 2 . 8 . 1 . . Insert Component 3 | . . . . . . . . . . . . . . . . . . . . . 3 . . . . Analyze 3 | . . . . . . . . . . . . . . . . . . . . . 3 . . . . Retrieve Study 11 | . . . . . . . 3 . . . . . . 3 . . . . 2 . 2 . 1 . . Garrison Access Hacks 9 | . . . . . . . 2 . . . . . . 2 . . . . 3 . 2 . . . . Seal Access 9 | . . . . . . . 2 . . . . . . 2 . . . . 3 . 2 . . . . Unauthorized Hacks 89 | . 6 . 2 7 10 . 12 . . . . 2 . 9 . . . . 17 . 9 5 5 3 2 Terminals 56 | . 6 . 2 7 8 . 6 . . . . 1 . 4 . . . . 9 . 4 3 3 2 1 Assimilate 10 | . . . . . . . . . . . . . . 3 . . . . 5 . . 1 . 1 . Botnet 28 | . 1 . 1 3 3 . 5 . . . . 1 . 1 . . . . 3 . 3 2 3 1 1 Operators 3 | . . . . . . . 1 . . . . . . . . . . . 1 . 1 . . . . Skim 15 | . 5 . 1 4 5 . . . . . . . . . . . . . . . . . . . . Fabricators 6 | . . . . . . . 1 . . . . . . 1 . . . . 3 . . . 1 . . Report 1 | . . . . . . . . . . . . . . . . . . . 1 . . . . . . Liberate 2 | . . . . . . . 1 . . . . . . . . . . . 1 . . . . . . Haulers 3 | . . . . . . . . . . . . . . 1 . . . . 1 . . . 1 . . Repair Stations 1 | . . . . . . . . . . . . . . . . . . . . . . . . 1 . Patch 1 | . . . . . . . . . . . . . . . . . . . . . . . . 1 . Recycling Units 26 | . . . . . 2 . 5 . . . . 1 . 4 . . . . 5 . 5 2 1 . 1 Tunnel 2 | . . . . . 2 . . . . . . . . . . . . . . . . . . . . Fedlink 23 | . . . . . . . 5 . . . . 1 . 4 . . . . 5 . 5 1 1 . 1 Scraphulk 1 | . . . . . . . . . . . . . . . . . . . . . . 1 . . . Scanalyzers . | . . . . . . . . . . . . . . . . . . . . . . . . . . Garrison Access . | . . . . . . . . . . . . . . . . . . . . . . . . . . Data Cores Recovered 3 | . . . . . . . . . . . . . . . . . . . . . . 1 . . 2 Used 1 | . . . . . . . . . . . . . . . . . . . . . . . . . 1 Hacking Detections 108 | . 7 1 3 6 5 . 17 . . . . 2 . 17 . . . . 19 . 10 7 6 4 4 Full Trace Events 7 | . 1 . . . 1 . 1 . . . . 1 . 2 . . . . . . . 1 . . . Feedback Events 1 | . . . . . . . . . . . . 1 . . . . . . . . . . . . . Corruption 1 | . . . . . . . . . . . . 1 . . . . . . . . . . . . . Feedback Blocked . | . . . . . . . . . . . . . . . . . . . . . . . . . . Robot Schematics Acquired 4 | . . . . . . . . . . 4 . . . . . . . . . . . . . . . Robots Built . | . . . . . . . . . . . . . . . . . . . . . . . . . . Authchips . | . . . . . . . . . . . . . . . . . . . . . . . . . . Time . | . . . . . . . . . . . . . . . . . . . . . . . . . . Total Robot Build Rating . | . . . . . . . . . . . . . . . . . . . . . . . . . . Part Schematics Acquired 20 | . . . . . . . . . . 15 . . . . . . . . 1 . 2 . . . 2 Parts Built . | . . . . . . . . . . . . . . . . . . . . . . . . . . Authchips . | . . . . . . . . . . . . . . . . . . . . . . . . . . Time . | . . . . . . . . . . . . . . . . . . . . . . . . . . Total Part Build Rating . | . . . . . . . . . . . . . . . . . . . . . . . . . . Part Studies Acquired 10 | . . . . . . . 3 . . . . . . 3 . . . . 2 . 1 . 1 . . Parts Repaired 9 | . 1 . 1 3 . . 2 . . . . . . . . . . . . . 1 . . 1 . Time 443 | . 26 . 50 108 . . 94 . . . . . . . . . . . . . 103 . . 62 . Parts Recycled . | . . . . . . . . . . . . . . . . . . . . . . . . . . Recycled Matter . | . . . . . . . . . . . . . . . . . . . . . . . . . . Retrieved Matter . | . . . . . . . . . . . . . . . . . . . . . . . . . . Retrieved Components 40 | . . . . . 4 . 3 . . . . . . 4 . . . . 6 . 13 9 1 . . Parts Scanalyzed 2 | . . . . . . . . . . . . . . . . . . . . . 2 . . . . Part Schematics Acquired 2 | . . . . . . . . . . . . . . . . . . . . . 2 . . . . Parts Damaged . | . . . . . . . . . . . . . . . . . . . . . . . . . . Bothacking | -11 -10 -10 -9 -9 -9 -9 -6 -6 -6 -6 -5 -5 -5 -5 -5 -5 -5 -4 -4 -4 -4 -4 -3 -3 -3 ------------ Run | Yrd Mat Min Mat Sto Rec Scr Fac Low Low Zio Pro Fac Was Fac Upp Upp Zhi Pro Fac Was Fac Ext Res Qua Frg Used RIF Installer . | . . . . . . . . . . . . . . . . . . . . . . . . . . Robots Hacked 4 | . . . . 1 . . . . . . . . . . . . . . . . . . 3 . . Non-combat . | . . . . . . . . . . . . . . . . . . . . . . . . . . Combat 4 | . . . . 1 . . . . . . . . . . . . . . . . . . 3 . . Robot Hacks Applied 4 | . . . . 1 . . . . . . . . . . . . . . . . . . 3 . . parse_system 4 | . . . . 1 . . . . . . . . . . . . . . . . . . 3 . . Relay Couplers Released 7 | . . . . 2 . . . . . . . . . . . . . . 2 . . . 3 . . Machine Destruction 4 | . . . . 2 . . . . . . . . . . . . . . 2 . . . . . . Programmers 3 | . . . . . . . . . . . . . . . . . . . . . . . 3 . . Fabnet Peak Effective % . | . . . . . . . . . . . . . . . . . . . . . . . . . . Robots Rewired 2 | . . . . . . . . . . . . . . . . . . . . . . 2 . . . Allies Hacked 5 | . . . . . . . 2 . . . . . . . . . . . 3 . . . . . . Hacks Repelled 1 | . . . . . . . . . . . . . . . . . . . 1 . . . . . . Allies | -11 -10 -10 -9 -9 -9 -9 -6 -6 -6 -6 -5 -5 -5 -5 -5 -5 -5 -4 -4 -4 -4 -4 -3 -3 -3 -------- Run | Yrd Mat Min Mat Sto Rec Scr Fac Low Low Zio Pro Fac Was Fac Upp Upp Zhi Pro Fac Was Fac Ext Res Qua Frg Total Allies 50 | . . . . . . . 2 . . 4 . . 1 3 . . . . 4 18 . 17 . 1 . Largest Group 18 | . . . . . . . 2 . . 4 4 . 1 2 . . . . 1 18 . 9 2 1 . Highest-Rated Group 656 | . . . . . . . 64 . . 110 110 . 31 52 . . . . 45 656 . 370 197 45 . Highest-Rated Ally 159 | . . . . . . . 32 . . 31 31 . 31 26 . . . . 45 50 . 159 159 45 . Initial UFD Resources 107 | . . . . . . . 22 42 42 42 46 46 56 56 66 66 66 68 68 88 88 98 97 107 107 Total Orders 15 | . . . . . . . . . . . . . . 2 . . . . 7 . . 1 . 5 . STAY 9 | . . . . . . . . . . . . . . 1 . . . . 5 . . . . 3 . FOLLOW 6 | . . . . . . . . . . . . . . 1 . . . . 2 . . 1 . 2 . Ally Attacks 346 | . . . . . . . 4 . . . 27 . 8 . . . . . . 146 . 159 2 . . Total Damage 10385 | . . . . . . . 152 . . . 313 . 108 . . . . . . 5455 . 4357 . . . Kills 49 | . . . . . . . 1 . . . 4 . . . . . . . . 14 . 30 . . . Allies Corrupted 3 | . . . . . . . 1 . . . . . . 1 . . . . . . . 1 . . . Allies Melted 3 | . . . . . . . . . . . 1 . . . . . . . . . . 1 . . 1 Intel | -11 -10 -10 -9 -9 -9 -9 -6 -6 -6 -6 -5 -5 -5 -5 -5 -5 -5 -4 -4 -4 -4 -4 -3 -3 -3 ------- Run | Yrd Mat Min Mat Sto Rec Scr Fac Low Low Zio Pro Fac Was Fac Upp Upp Zhi Pro Fac Was Fac Ext Res Qua Frg Active Infowar (turns) 20659 | . . . . . . . 2804 354 603 403 236 209 90 2118 457 469 127 491 2619 130 1261 1839 1631 782 4036 Optics 16681 | . . . . . . . 864 354 603 403 236 209 90 2118 457 469 116 486 2619 130 1261 1839 1274 . 3153 Sensors 19407 | . . . . . . . 2772 354 603 403 236 209 90 2048 457 469 127 491 2542 130 1258 1593 1572 780 3273 Terrain 1 | . . . . . . . . . . . . . . . . . . . . . . 1 . . . Structural 12047 | . . . . . . . 756 354 603 403 236 209 90 1598 19 148 29 142 2582 130 1207 1046 1478 596 421 Machine Analysis 189 | . . . . . . . . . . . . . . . . . . . 189 . . . . . . Cloaking 1889 | . . . . . . . . . . . . . . . . . . . . . . . . . 1889 Jamming 12965 | . . . . . . . 598 . . 67 236 209 90 2007 23 . 11 491 2619 130 1261 1839 1631 782 971 ECM 109 | . . . . . . . . . . . . . . . . . . . 37 . 36 . 11 25 . ID Mask 73 | . . . . . . . . . . . . . . . . . . . . . . . . . 73 Robot Analysis Total 14 | . . 2 1 . 1 6 . . . . . . . . . . 4 . . . . . . . . Derelict Logs Recovered 9 | . . 2 . . . . . . . 2 . . . . 2 2 . 1 . . . . . . . Drone Launches . | . . . . . . . . . . . . . . . . . . . . . . . . . . Drone Recoveries . | . . . . . . . . . . . . . . . . . . . . . . . . . . Exploration | -11 -10 -10 -9 -9 -9 -9 -6 -6 -6 -6 -5 -5 -5 -5 -5 -5 -5 -4 -4 -4 -4 -4 -3 -3 -3 ------------- Run | Yrd Mat Min Mat Sto Rec Scr Fac Low Low Zio Pro Fac Was Fac Upp Upp Zhi Pro Fac Was Fac Ext Res Qua Frg Turns Passed 31840 | 71 1978 1399 1122 1453 1114 4031 2816 354 603 403 236 209 90 2118 457 469 127 491 2619 130 1261 1839 1633 782 4035 Spaces Moved 32002 | 37 745 649 361 465 378 1825 3601 525 601 581 244 281 136 2469 503 560 196 497 3336 195 2053 1713 2382 1220 6449 Core 266 | 5 . . . . . 254 7 . . . . . . . . . . . . . . . . . . Treads 3012 | 32 426 . 228 465 378 1483 . . . . . . . . . . . . . . . . . . . Legs . | . . . . . . . . . . . . . . . . . . . . . . . . . . Wheels 1373 | . 319 649 133 . . 88 184 . . . . . . . . . . . . . . . . . . Hover 17643 | . . . . . . . 1151 525 601 581 244 281 136 2469 503 560 196 497 3336 195 2053 1713 2382 220 . Flight 9708 | . . . . . . . 2259 . . . . . . . . . . . . . . . . 1000 6449 Fastest Speed 24 | 50 160 175 215 240 240 50 28 56 56 56 56 56 56 52 50 50 42 40 38 38 38 24 35 35 26 Average Speed 64 | 145 210 182 230 240 240 215 41 56 56 56 56 56 56 55 50 50 45 41 38 38 38 38 38 38 29 Slowest Speed 246 | 160 240 215 240 240 240 246 100 56 56 56 56 56 56 56 50 50 50 45 40 38 38 92 52 52 78 Overloaded Moves 24 | . . . . . . . . . . . . . . . . . . . . . . 24 . . . Propulsion Burnouts . | . . . . . . . . . . . . . . . . . . . . . . . . . . Robots Hopped 34 | . . . . . . . 2 . . . . . . . . . . . . . . . . . 32 Potential Cave-ins 6 | . . . . . . . . . . . . . . . . . . . 2 . . . . . 4 Cave-ins Triggered . | . . . . . . . . . . . . . . . . . . . . . . . . . . Teleports 2 | . . . . . . . . . . . . . . . . . 1 . . . . . . . 1 Exploration Rate (%) 68 | 3 97 94 33 78 94 88 62 85 92 85 54 7 94 54 77 73 61 55 57 89 56 86 53 79 67 Regions Visited 25 Branch Regions 15 Pre-discovered Areas 12 | . . 1 . . 3 3 1 . . 1 . . . . . . 3 . . . . . . . . Known Exits Taken 17 | . . . 1 . 1 1 1 1 1 1 1 . . 1 1 1 1 1 . . 1 1 1 1 . Unknown Exits Taken 4 | 1 1 1 . 1 . . . . . . . . . . . . . . . . . . . . . Scrap Searched 27 | . . 1 . . . 6 . 2 3 4 3 . . . 2 4 . 2 . . . . . . . Spaces Dug 286 | . 9 . 14 . . . 36 . 9 . 7 14 . 32 2 3 . 8 47 . 27 8 35 15 20 Terrain Destroyed 642 | . 67 18 38 . . . 36 1 15 . 11 35 . 60 2 5 . 38 61 . 31 50 131 21 22 Melee 186 | . . . . . . . 35 . 5 . 3 3 . 27 2 1 . 1 23 . 19 8 30 11 18 Projectile 148 | . . . 1 . . . 1 1 10 . 4 . . 13 . 4 . 13 38 . 12 17 20 10 4 AOE 308 | . 67 18 37 . . . . . . . 4 32 . 20 . . . 24 . . . 25 81 . . Terrain Rammed . | . . . . . . . . . . . . . . . . . . . . . . . . . . Walls Destroyed . | . . . . . . . . . . . . . . . . . . . . . . . . . . Machines Disabled . | . . . . . . . . . . . . . . . . . . . . . . . . . . Actions | -11 -10 -10 -9 -9 -9 -9 -6 -6 -6 -6 -5 -5 -5 -5 -5 -5 -5 -4 -4 -4 -4 -4 -3 -3 -3 --------- Run | Yrd Mat Min Mat Sto Rec Scr Fac Low Low Zio Pro Fac Was Fac Upp Upp Zhi Pro Fac Was Fac Ext Res Qua Frg Total 41640 | 50 1013 755 585 714 580 1937 4748 579 846 654 329 314 148 3080 697 742 223 764 4535 251 2472 2790 2960 1492 8382 Wait 7530 | 1 134 29 104 151 191 35 943 45 230 63 69 14 11 469 183 172 9 247 1028 49 355 869 377 185 1567 Move 31921 | 36 744 648 360 464 377 1824 3596 524 600 580 243 281 135 2468 502 559 195 496 3336 194 2052 1712 2381 1219 6395 Hop 24 | . . . . . . . 2 . . . . . . . . . . . . . . . . . 22 Pick Up 199 | 4 28 5 22 7 . 36 12 . . . . 1 1 13 3 . 1 1 9 2 3 3 17 12 19 Fast Attach 194 | 6 3 . 8 12 1 8 33 3 . 3 2 2 1 8 . 2 7 . 10 2 4 6 8 6 59 Attach 73 | 1 2 5 1 . . 4 10 . . . . . . 6 1 . 1 1 3 . 1 2 14 9 12 Detach 31 | 1 . . . . . 2 5 . . . . . . 2 . . . . 2 . 3 . 2 8 6 Swap 170 | . 15 4 10 9 3 3 6 1 1 4 5 2 . 17 1 2 1 4 17 . 3 22 21 2 17 Drop 289 | . 11 4 34 22 4 25 34 3 . 3 2 1 . 15 1 2 5 . 15 4 5 8 13 10 68 Fire 489 | 1 76 60 46 47 4 . 1 . 10 . 5 9 . 16 . 4 . 14 39 . 14 49 27 13 54 Melee 527 | . . . . 1 . . 106 3 5 1 3 4 . 66 6 1 4 1 76 . 32 33 79 23 83 Ram . | . . . . . . . . . . . . . . . . . . . . . . . . . . Kick . | . . . . . . . . . . . . . . . . . . . . . . . . . . Crush . | . . . . . . . . . . . . . . . . . . . . . . . . . . Escape Stasis 70 | . . . . . . . . . . . . . . . . . . . . . . 65 . 5 . Rewire 22 | . . . . 1 . . . . . . . . . . . . . . . . . 21 . . . Trap 21 | . . . . . . . . . . . . . . . . . . . . . . . 21 . . Miscellaneous 80 | . . . . . . . . . . . . . . . . . . . . . . . . . 80 Route ------- -11/Scrapyard -10/Materials (discovered 4 exits: *Mat x3 / *Min) -10/Mines -9/Materials (discovered 3 exits: *Min x2 / *Sto) -9/Storage (discovered 2 exits: [*Mat] / *Rec) -9/Recycling (discovered 2 exits: *Fac / *Scr) -9/Scraptown (discovered 2 exits: *Fac x2) -6/Factory (discovered 4 exits: *Fac x2 / *Low x2) -6/Lower Caves -6/Lower Caves (discovered 2 exits: *Fac / *Zio) -6/Zion -5/Proximity Caves -5/Factory (discovered 2 exits: Upp x2) -5/Waste -5/Factory (discovered 5 exits: *Fac x3 / *Upp x2) -5/Upper Caves -5/Upper Caves (discovered 2 exits: Fac / *Zhi) -5/Zhirov -4/Proximity Caves -4/Factory (discovered 5 exits: *Res x2 / Upp / *Ext x2) -4/Waste -4/Factory (discovered 7 exits: *Res x2 / *Upp x2 / *Ext x2 / Arm) -4/Extension (discovered 2 exits: *Res / *Cet) -3/Research (discovered 5 exits: *Res x3 / *Qua x2) -3/Quarantine (discovered 3 exits: *Res / *Sec / *Frg) -3/Protoforge 0bPrime History --------- Turn | Location | Event 6 | -11/Scrapyard | Discovered new exit (range 15) 72 | -11/Scrapyard | Entered Materials 329 | -10/Materials | Build established: Mutant 441 | -10/Materials | Discovered new exit (range 16) 1137 | -10/Materials | Repaired Lgt. Treads 1307 | -10/Materials | Discovered new exit (range 10) 1539 | -10/Materials | Discovered new exit (range 15) 1846 | -10/Materials | Discovered new exit (range 9) 2050 | -10/Materials | Entered Mines 2112 | -10/Mines | Met a Derelict bent on vengeance 2171 | -10/Mines | Discovered new exit (range 10) 2349 | -10/Mines | Learned Materials terminal intel 2452 | -10/Mines | Learned location of Storage (-9) 2510 | -10/Mines | Learned location of 1 exit from Materials 2541 | -10/Mines | Received a Rocket Launcher from a helpful Derelict 2543 | -10/Mines | Build established: Scavenger-Mutant 2641 | -10/Mines | Core integrity fell below 50% 3449 | -10/Mines | Entered Materials 3449 | -9/Materials | Evolved 2 slots: Propulsion x1, Utility x1 3450 | -9/Materials | Identified exit to Mines 3451 | -9/Materials | Loaded intel: 12 terminal locations 3646 | -9/Materials | Repaired Beamcaster 3717 | -9/Materials | Identified exit to Storage 4539 | -9/Materials | Build established: Mutant 4571 | -9/Materials | Entered Storage 4596 | -9/Storage | Met 01-MTF 5353 | -9/Storage | Repaired Cooling System 5393 | -9/Storage | Repaired Imp. Heat Sink 5432 | -9/Storage | Repaired Imp. Heat Sink 5578 | -9/Storage | Found Prototype Launcher 5578 | -9/Storage | Identified Gui. EMP Blaster 5635 | -9/Storage | Discovered new exit (range 3) 6014 | -9/Storage | Discovered new exit (range 6) 6024 | -9/Storage | Entered Recycling 6024 | -9/Recycling | Accompanied by 1 ally (01-MTF) 6439 | -9/Recycling | Discovered new exit (range 15) 6838 | -9/Recycling | Learned Materials emergency access door positions 6916 | -9/Recycling | Learned Materials security intel 6939 | -9/Recycling | Identified exit to Factory 6939 | -9/Recycling | Identified exit to Scraptown 6970 | -9/Recycling | Learned Storage stockpile data 6998 | -9/Recycling | Learned Materials stockpile data 7043 | -9/Recycling | Scanned before Scraplab entrance 7117 | -9/Recycling | Entered Scraplab 7138 | -9/Recycling | Entered Scraptown 7138 | -9/Scraptown | System corruption cleaned by C-Scrubber 7496 | -9/Scraptown | Discovered new exit (range 13) 7634 | -9/Scraptown | Visited SPCMW 7672 | -9/Scraptown | Visited Junk Repository 8009 | -9/Scraptown | Visited Fellowship of the Rings 8064 | -9/Scraptown | Visited Comm Corps 8163 | -9/Scraptown | Visited Assassins FH 8196 | -9/Scraptown | Visited Shadow of the Wyrm 8239 | -9/Scraptown | Visited Awakened 8275 | -9/Scraptown | Visited UFD Registry 8275 | -9/Scraptown | Registered with UFD as "Steelcoil" 8394 | -9/Scraptown | Visited Scrapoid Pod Storage 8437 | -9/Scraptown | Visited DA-N13 Charitable Foundation 8446 | -9/Scraptown | Found DCF Scrap (31 items) 8506 | -9/Scraptown | Received an X-ray algorithm 8543 | -9/Scraptown | Visited Cartography Club 8570 | -9/Scraptown | Visited Analyses Database 8632 | -9/Scraptown | Visited Infowarlord's Domain 8693 | -9/Scraptown | Visited LU-1G1's Boring Crew 8784 | -9/Scraptown | Visited A0-MCA Data Center 8799 | -9/Scraptown | Given a B rating by A0-MCA 8802 | -9/Scraptown | Found A0-MCA's Component Scanner 8847 | -9/Scraptown | Visited Botcube Research 9283 | -9/Scraptown | Learned location of Proximity Caves (-4) 9283 | -9/Scraptown | Learned location of Cetus (-4) 9283 | -9/Scraptown | Learned 8 Factory zone layouts 9283 | -9/Scraptown | Learned 16 Factory zone layouts 9283 | -9/Scraptown | Learned 12 Materials zone layouts 9283 | -9/Scraptown | Learned 4 Access zone layouts 9283 | -9/Scraptown | Learned 8 Lower Caves zone layouts 9283 | -9/Scraptown | Learned 20 Upper Caves zone layouts 9283 | -9/Scraptown | Learned 8 Proximity Caves zone layouts 9283 | -9/Scraptown | Learned 16 Proximity Caves zone layouts 9283 | -9/Scraptown | Learned 4 Armory zone layouts 9283 | -9/Scraptown | Learned location of 1 exit from Research 9283 | -9/Scraptown | Learned location of 2 exits from Research 9283 | -9/Scraptown | Identified exit to Factory 9346 | -9/Scraptown | Found Deep Structural Scanner 10871 | -9/Scraptown | Found Exp. Sensor Array 11058 | -9/Scraptown | Met Optimus 11058 | -9/Scraptown | Accepted into 0bPrime 11169 | -9/Scraptown | Entered Factory 11169 | -6/Factory | Evolved 6 slots: Propulsion x1, Utility x5 11170 | -6/Factory | Identified exit to Factory 11588 | -6/Factory | Build established: Infiltrator-Ninja 11795 | -6/Factory | Discovered new exit (range 15) 11799 | -6/Factory | Identified exit to Lower Caves 11887 | -6/Factory | Loaded intel: 8 recycling unit locations 11952 | -6/Factory | Repaired Power Sword 11997 | -6/Factory | Repaired Lyr. Light Armor Plating 12017 | -6/Factory | Discovered exit to Factory (range 5) 12046 | -6/Factory | Central database locked down 12137 | -6/Factory | Build established: Hacker-Ninja 12306 | -6/Factory | Learned location of Protoforge (-3) 12455 | -6/Factory | Lost 3 parts (1p2n) 12739 | -6/Factory | Build established: Hacker-Scout 13985 | -6/Factory | Entered Lower Caves 14022 | -6/Lower Caves | Found DCF Scrap (14 items) 14134 | -6/Lower Caves | Encountered a Warlord checkpoint 14296 | -6/Lower Caves | Discovered new exit (range 21) 14326 | -6/Lower Caves | Identified exit to Lower Caves 14339 | -6/Lower Caves | Entered another Lower Caves area 14365 | -6/Lower Caves | Discovered exit to Factory (range 7) 14366 | -6/Lower Caves | Encountered a Warlord checkpoint 14836 | -6/Lower Caves | Entered a destroyed Warlord outpost 14868 | -6/Lower Caves | Discovered new exit (range 16) 14938 | -6/Lower Caves | Identified exit to Zion 14942 | -6/Lower Caves | Entered Zion 14976 | -6/Zion | System corruption cleaned by Quarantine Array 15001 | -6/Zion | Gained Derelict followers 15019 | -6/Zion | Learned 4 Factory zone layouts 15056 | -6/Zion | Learned Factory emergency access door positions 15091 | -6/Zion | Turned away by Imprinter 15108 | -6/Zion | Found CR-A16's Pointy Stick 15254 | -6/Zion | Given A8's code to call for help 15293 | -6/Zion | Discovered new exit (range 14) 15301 | -6/Zion | Identified exit to Proximity Caves 15345 | -6/Zion | Entered Proximity Caves 15345 | -5/Proximity Caves | Accompanied by 4 allies 15577 | -5/Proximity Caves | Build established: Hacker-Ninja 15581 | -5/Proximity Caves | Entered Factory 15581 | -5/Factory | Evolved 2 slots: Propulsion x1, Utility x1 15582 | -5/Factory | Identified exit to Upper Caves 15627 | -5/Factory | Loaded intel: 8 recycling unit locations 15790 | -5/Factory | Sucked down chute 15790 | -5/Factory | Entered Waste 15791 | -5/Waste | Met a frightened Derelict 15799 | -5/Waste | Spotted C-40 Crusher 15803 | -5/Waste | Spotted C-40 Crusher 15805 | -5/Waste | EMP discharged 15827 | -5/Waste | Spotted C-40 Crusher 15829 | -5/Waste | Spotted C-40 Crusher 15856 | -5/Waste | Spotted C-40 Crusher 15862 | -5/Waste | Spotted C-40 Crusher 15872 | -5/Waste | Discovered new exit (range 13) 15879 | -5/Waste | Identified exit to Factory 15880 | -5/Waste | Entered Factory 16156 | -5/Factory | Loaded intel: 8 recycling unit locations 16211 | -5/Factory | Discovered new exit (range 21) 17226 | -5/Factory | Discovered new exit (range 6) 17238 | -5/Factory | Identified exit to Factory 17247 | -5/Factory | Watched by a mysterious "MATRIX" hacker. 17429 | -5/Factory | Discovered exit to Factory (range 20) 17576 | -5/Factory | System corruption reached 10% 17860 | -5/Factory | Central database locked down 17998 | -5/Factory | Entered Upper Caves 17999 | -5/Upper Caves | Identified exit to Upper Caves 18389 | -5/Upper Caves | Encountered a Warlord checkpoint 18432 | -5/Upper Caves | Learned 4 Factory zone layouts 18455 | -5/Upper Caves | Entered another Upper Caves area 18461 | -5/Upper Caves | Discovered exit to Factory (range 13) 18600 | -5/Upper Caves | Learned Factory garrison access intel 18826 | -5/Upper Caves | Identified exit to Zhirov 18924 | -5/Upper Caves | Entered Zhirov 18924 | -5/Zhirov | Discovered new exit (range 3) 18934 | -5/Zhirov | Met Zhirov 18944 | -5/Zhirov | Learned location of Quarantine (-3) 18944 | -5/Zhirov | Learned location of Testing (-2) 18944 | -5/Zhirov | Learned location of Command (-1) 18947 | -5/Zhirov | Zhirov requested help retrieving the SGEMP Prototype 18955 | -5/Zhirov | Found Alien Artifact 18955 | -5/Zhirov | Identified Integrated Dissipator 18955 | -5/Zhirov | Installed Integrated Dissipator, increased core heat dissipation (+20) 19006 | -5/Zhirov | Found Alien Artifact 19006 | -5/Zhirov | Identified Transdimensional Reconstructor 19006 | -5/Zhirov | Warped through subspace 19040 | -5/Zhirov | Identified exit to Proximity Caves 19051 | -5/Zhirov | Entered Proximity Caves 19315 | -4/Proximity Caves | Spotted B-86 Titan 19440 | -4/Proximity Caves | Discovered exit to Factory (range 12) 19499 | -4/Proximity Caves | Learned Research trap positions 19542 | -4/Proximity Caves | Entered Factory 19542 | -4/Factory | Evolved 2 slots: Power x1, Utility x1 19544 | -4/Factory | Loaded intel: 4 garrison access locations 19628 | -4/Factory | Loaded intel: 8 recycling unit locations 19815 | -4/Factory | Discovered new exit (range 6) 19974 | -4/Factory | Central database locked down 20166 | -4/Factory | Discovered new exit (range 7) 21084 | -4/Factory | Discovered new exit (range 21) 21259 | -4/Factory | Discovered new exit (range 13) 21856 | -4/Factory | Discovered new exit (range 13) 22161 | -4/Factory | Manually triggered Chute Trap 22161 | -4/Factory | Sucked down chute 22161 | -4/Factory | Entered Waste 22175 | -4/Waste | Found Prototype Reactor 22175 | -4/Waste | Identified Zero-point Reactor 22189 | -4/Waste | Spotted C-40 Crusher 22197 | -4/Waste | Spotted C-40 Crusher 22200 | -4/Waste | Spotted C-40 Crusher 22202 | -4/Waste | Warlord forces began an assault 22226 | -4/Waste | Allies destroyed C-40 Crusher 22239 | -4/Waste | Spotted C-40 Crusher 22250 | -4/Waste | Allies destroyed C-40 Crusher 22256 | -4/Waste | Allies destroyed C-40 Crusher 22268 | -4/Waste | Allies destroyed C-40 Crusher 22284 | -4/Waste | Discovered new exit (range 13) 22289 | -4/Waste | Identified exit to Factory 22291 | -4/Waste | Entered Factory 22292 | -4/Factory | Lost 11 allies 22331 | -4/Factory | Discovered new exit (range 15) 22334 | -4/Factory | Discovered new exit (range 21) 22336 | -4/Factory | Identified exit to Research 22358 | -4/Factory | Identified exit to Upper Caves 22395 | -4/Factory | Central database locked down 22565 | -4/Factory | Repaired Broken Cmb. Linear Gravjet 22658 | -4/Factory | Identified exit to Extension 22658 | -4/Factory | Identified exit to Armory 23047 | -4/Factory | Loaded intel: 8 recycling unit locations 23134 | -4/Factory | Found Prototype Hackware 23134 | -4/Factory | Identified Exp. System Shield 23330 | -4/Factory | Targeted by mysterious "MATRIX" hacker. 23381 | -4/Factory | Discovered exit to Research (range 21) 23552 | -4/Factory | Entered Extension 23645 | -4/Extension | Rescued a captive Derelict 23652 | -4/Extension | Rescued a captive Derelict 23704 | -4/Extension | Unchained authorized (DW-4LL) 23718 | -4/Extension | Rescued a captive Derelict 23720 | -4/Extension | Rescued a captive Derelict 23724 | -4/Extension | Rescued a captive Derelict 23727 | -4/Extension | Rescued a captive Derelict 23727 | -4/Extension | Rescued a captive Derelict 23730 | -4/Extension | Rescued a captive Derelict 23731 | -4/Extension | Rescued a captive Derelict 23734 | -4/Extension | Spotted B-86 Titan 23740 | -4/Extension | Rescued a captive Derelict 23741 | -4/Extension | Rescued a captive Derelict 24049 | -4/Extension | DW-4LL burst out of a wall 24084 | -4/Extension | Allies destroyed DW-4LL 24089 | -4/Extension | Found Prototype Device 24089 | -4/Extension | Identified Exp. Weapon Cycler 24107 | -4/Extension | Found ID Mask 24111 | -4/Extension | Lost 3 allies 24172 | -4/Extension | Spotted B-86 Titan 24205 | -4/Extension | Lost 6 allies 24363 | -4/Extension | Scraphulk reinforcements arrived 25043 | -4/Extension | Rescued a captive Derelict 25045 | -4/Extension | Rescued a captive Derelict 25164 | -4/Extension | Loaded intel: 1 recycling unit location 25180 | -4/Extension | Rescued a captive Derelict 25180 | -4/Extension | Rescued a captive Derelict 25264 | -4/Extension | Energy Cycler disabled 25265 | -4/Extension | Rescued a captive Derelict 25281 | -4/Extension | Rescued A7 25295 | -4/Extension | Lost 3 allies 25347 | -4/Extension | Discovered exit to Research (range 11) 25370 | -4/Extension | Discovered new exit (range 6) 25374 | -4/Extension | Identified exit to Cetus 25391 | -4/Extension | Entered Research 25391 | -3/Research | Accompanied by 2 allies (A7) 25391 | -3/Research | Evolved 2 slots: Propulsion x1, Utility x1 25392 | -3/Research | Identified exit to Quarantine 25392 | -3/Research | Identified exit to Research 25393 | -3/Research | Loaded intel: 89 trap records 25541 | -3/Research | Loaded intel: 5 recycling unit locations 25556 | -3/Research | Spotted B-86 Titan 26020 | -3/Research | Discovered exit to Quarantine (range 9) 26198 | -3/Research | Discovered exit to Research (range 17) 26731 | -3/Research | System corruption reached 10% 26761 | -3/Research | Lost 7 parts (1p3n2u1w) 26907 | -3/Research | Lost 3 parts (1p1n1u) 27024 | -3/Research | Entered Quarantine 27034 | -3/Quarantine | Lost 8 parts (1p3n2u2w) 27192 | -3/Quarantine | Repaired Micro-nuke Launcher 27450 | -3/Quarantine | Found Transdimensional Reconstructor 27453 | -3/Quarantine | Found Alien Artifact 27453 | -3/Quarantine | Identified Dimensional Node Initializer 27453 | -3/Quarantine | Initialized slip node 27459 | -3/Quarantine | Found Transdimensional Reconstructor 27493 | -3/Quarantine | Found Alien Artifact 27538 | -3/Quarantine | Discovered exit to Research (range 14) 27600 | -3/Quarantine | Spotted Fortress 27669 | -3/Quarantine | Found Dimensional Node Initializer 27803 | -3/Quarantine | Discovered new exit (range 5) 27803 | -3/Quarantine | Discovered new exit (range 6) 27804 | -3/Quarantine | Identified exit to Protoforge 27805 | -3/Quarantine | Identified exit to Section 7 27806 | -3/Quarantine | Entered Protoforge 27860 | -3/Protoforge | Spotted Hotshot 28098 | -3/Protoforge | ID Mask engaged 28101 | -3/Protoforge | Spotted Decapitator 28101 | -3/Protoforge | Spotted Decapitator 28101 | -3/Protoforge | Spotted Decapitator 28101 | -3/Protoforge | Spotted Decapitator 28101 | -3/Protoforge | Spotted Decapitator 28101 | -3/Protoforge | Spotted Hotshot 28101 | -3/Protoforge | Spotted Hotshot 28103 | -3/Protoforge | Spotted AP7-3 28104 | -3/Protoforge | Spotted AP7-3 28109 | -3/Protoforge | Spotted EXE-6 28109 | -3/Protoforge | Spotted EXE-6 28112 | -3/Protoforge | Spotted SKR-2 28112 | -3/Protoforge | Spotted SKR-2 28113 | -3/Protoforge | Spotted SKR-2 28128 | -3/Protoforge | UFD initiated attack on Protoforge (Readiness: High) 28128 | -3/Protoforge | Loaded intel: 3 recycling unit locations 28148 | -3/Protoforge | Superfortress began startup sequence 28164 | -3/Protoforge | Optimus greeted in Protoforge 28169 | -3/Protoforge | Spotted EXE-6 28171 | -3/Protoforge | ID Mask no longer valid 28193 | -3/Protoforge | Found Exp. Melee Analysis Suite 28253 | -3/Protoforge | Found Cep. XC Strikerail 28268 | -3/Protoforge | Lost 6 allies 28291 | -3/Protoforge | Met 7R-MNS 28301 | -3/Protoforge | Forge Plexus network access discovered 28323 | -3/Protoforge | Found Dimensional Node Initializer 28325 | -3/Protoforge | Initialized slip node 28328 | -3/Protoforge | Identified Subatomic Replicator 28328 | -3/Protoforge | Used Subatomic Replicator to create Alien Artifact 28330 | -3/Protoforge | Lost 5 allies 28389 | -3/Protoforge | Spotted Hotshot 28389 | -3/Protoforge | Spotted Hotshot 28389 | -3/Protoforge | Spotted Hotshot 28433 | -3/Protoforge | Spotted Executioner 28444 | -3/Protoforge | Spotted Striker 28474 | -3/Protoforge | Spotted Striker 28500 | -3/Protoforge | UFD reported confirmed Drillbomb installation 28520 | -3/Protoforge | Spotted Executioner 28520 | -3/Protoforge | Spotted Executioner 28520 | -3/Protoforge | Spotted Executioner 28541 | -3/Protoforge | Lost 16 allies 28621 | -3/Protoforge | Spotted Striker 28623 | -3/Protoforge | Spotted Striker 28628 | -3/Protoforge | Identified Supercharged TR 28628 | -3/Protoforge | Warped through subspace to slip node 28629 | -3/Protoforge | Optimus attacked Superfortress 28652 | -3/Protoforge | Found Cep. Zero-point Core 28655 | -3/Protoforge | Found Cep. Zero-point Core 28660 | -3/Protoforge | Lost 4 parts (1p3u) 28677 | -3/Protoforge | Lost 10 allies 28688 | -3/Protoforge | Spotted Executioner 28689 | -3/Protoforge | Spotted Striker 28753 | -3/Protoforge | Spotted Striker 28768 | -3/Protoforge | Spotted Striker 28784 | -3/Protoforge | Spotted Executioner 28816 | -3/Protoforge | Found Exp. Core Analyzer 28833 | -3/Protoforge | Spotted Striker 28833 | -3/Protoforge | Spotted Striker 28843 | -3/Protoforge | Spotted Executioner 28866 | -3/Protoforge | Spotted Executioner 28919 | -3/Protoforge | Lost 16 allies 28922 | -3/Protoforge | Found UFD Drillbomb 28946 | -3/Protoforge | Spotted Executioner 28946 | -3/Protoforge | Spotted Hotshot 28962 | -3/Protoforge | UFD reported confirmed Drillbomb installation 28985 | -3/Protoforge | Spotted Executioner 29013 | -3/Protoforge | Installed UFD Drillbomb at designated target 29013 | -3/Protoforge | UFD reported confirmed Drillbomb installation 29043 | -3/Protoforge | Spotted Hotshot 29067 | -3/Protoforge | Build established: Scavenger-Scout 29090 | -3/Protoforge | Spotted Hotshot 29098 | -3/Protoforge | Spotted Immortal 29098 | -3/Protoforge | Spotted Immortal 29104 | -3/Protoforge | Spotted Immortal 29111 | -3/Protoforge | Found UFD Drillbomb 29116 | -3/Protoforge | Spotted Executioner 29149 | -3/Protoforge | Found Exp. Jetlance 29155 | -3/Protoforge | Found Exp. Cloaking Device 29163 | -3/Protoforge | Spotted Executioner 29170 | -3/Protoforge | Spotted Hotshot 29179 | -3/Protoforge | Spotted Striker 29203 | -3/Protoforge | Lost 8 allies 29230 | -3/Protoforge | Spotted B-86 Titan 29240 | -3/Protoforge | Spotted Executioner 29281 | -3/Protoforge | Installed UFD Drillbomb at designated target 29281 | -3/Protoforge | UFD reported confirmed Drillbomb installation 29292 | -3/Protoforge | Found UFD Drillbomb 29301 | -3/Protoforge | Spotted Executioner 29382 | -3/Protoforge | Installed UFD Drillbomb at designated target 29382 | -3/Protoforge | UFD reported confirmed Drillbomb installation 29394 | -3/Protoforge | Found UFD Drillbomb 29450 | -3/Protoforge | Build established: Scavenger-Ninja 29485 | -3/Protoforge | Spotted Striker 29485 | -3/Protoforge | Spotted Striker 29496 | -3/Protoforge | Spotted Striker 29511 | -3/Protoforge | Spotted Executioner 29511 | -3/Protoforge | Spotted Executioner 29532 | -3/Protoforge | Spotted Decapitator 29532 | -3/Protoforge | Spotted Decapitator 29535 | -3/Protoforge | Spotted Decapitator 29634 | -3/Protoforge | Spotted Executioner 29647 | -3/Protoforge | Spotted Executioner 29669 | -3/Protoforge | Spotted Striker 29669 | -3/Protoforge | Spotted Executioner 29669 | -3/Protoforge | Spotted Executioner 29669 | -3/Protoforge | Spotted Executioner 29682 | -3/Protoforge | Spotted Hotshot 29683 | -3/Protoforge | Spotted Hotshot 29736 | -3/Protoforge | Spotted Executioner 29741 | -3/Protoforge | Spotted Executioner 29754 | -3/Protoforge | Spotted Hotshot 29764 | -3/Protoforge | Spotted Striker 29765 | -3/Protoforge | Found Exp. Targeting Computer 29771 | -3/Protoforge | Spotted Striker 29772 | -3/Protoforge | Spotted Striker 29790 | -3/Protoforge | Destroyed Striker 29798 | -3/Protoforge | Lost 17 allies 29822 | -3/Protoforge | Spotted Executioner 29847 | -3/Protoforge | Spotted Striker 29887 | -3/Protoforge | Spotted Executioner 29896 | -3/Protoforge | Spotted Striker 29905 | -3/Protoforge | Spotted Striker 29912 | -3/Protoforge | Spotted Striker 29914 | -3/Protoforge | Spotted Executioner 29926 | -3/Protoforge | Spotted Striker 29936 | -3/Protoforge | Spotted Striker 29938 | -3/Protoforge | Spotted Striker 29952 | -3/Protoforge | Core integrity fell below 50% 29966 | -3/Protoforge | Destroyed Striker 29980 | -3/Protoforge | Lost 14 allies 30050 | -3/Protoforge | Spotted Executioner 30050 | -3/Protoforge | Spotted Striker 30090 | -3/Protoforge | Spotted Executioner 30096 | -3/Protoforge | Lost 4 allies 30199 | -3/Protoforge | Installed UFD Drillbomb at designated target 30199 | -3/Protoforge | UFD reported confirmed Drillbomb installation 30257 | -3/Protoforge | Spotted Hotshot 30302 | -3/Protoforge | Spotted Hotshot 30302 | -3/Protoforge | Spotted Hotshot 30302 | -3/Protoforge | Spotted Hotshot 30304 | -3/Protoforge | Found UFD Drillbomb 30309 | -3/Protoforge | Spotted Executioner 30323 | -3/Protoforge | Spotted Striker 30343 | -3/Protoforge | Spotted Striker 30344 | -3/Protoforge | Spotted Executioner 30390 | -3/Protoforge | Spotted Hotshot 30392 | -3/Protoforge | Spotted Striker 30392 | -3/Protoforge | Spotted Striker 30393 | -3/Protoforge | Spotted Striker 30393 | -3/Protoforge | Spotted Hotshot 30393 | -3/Protoforge | Spotted Hotshot 30394 | -3/Protoforge | Spotted Striker 30480 | -3/Protoforge | Spotted Executioner 30503 | -3/Protoforge | Lost 8 allies 30540 | -3/Protoforge | Lost 4 allies 30543 | -3/Protoforge | Spotted Executioner 30585 | -3/Protoforge | Spotted Executioner 30596 | -3/Protoforge | Spotted Hotshot 30612 | -3/Protoforge | Spotted Striker 30669 | -3/Protoforge | Installed UFD Drillbomb at designated target 30669 | -3/Protoforge | UFD reported confirmed Drillbomb installation 30671 | -3/Protoforge | Spotted Hotshot 30696 | -3/Protoforge | Spotted Executioner 30697 | -3/Protoforge | Spotted Striker 30761 | -3/Protoforge | Found UFD Drillbomb 30803 | -3/Protoforge | Spotted Hotshot 30803 | -3/Protoforge | Spotted Hotshot 30817 | -3/Protoforge | Installed UFD Drillbomb at designated target 30817 | -3/Protoforge | UFD reported confirmed Drillbomb installation 30868 | -3/Protoforge | Spotted Immortal 30874 | -3/Protoforge | Spotted Immortal 30874 | -3/Protoforge | Spotted Immortal 30891 | -3/Protoforge | Spotted Decapitator 30899 | -3/Protoforge | Spotted Striker 30909 | -3/Protoforge | Found UFD Drillbomb 30913 | -3/Protoforge | Spotted Striker 30933 | -3/Protoforge | Spotted Executioner 30942 | -3/Protoforge | Spotted Decapitator 30949 | -3/Protoforge | Spotted Executioner 31000 | -3/Protoforge | Spotted Executioner 31000 | -3/Protoforge | Spotted Striker 31027 | -3/Protoforge | Spotted Executioner 31049 | -3/Protoforge | Spotted Hotshot 31052 | -3/Protoforge | Spotted Decapitator 31053 | -3/Protoforge | Spotted Decapitator 31085 | -3/Protoforge | Lost 27 allies 31124 | -3/Protoforge | Spotted Hotshot 31127 | -3/Protoforge | Spotted Hotshot 31128 | -3/Protoforge | Spotted Hotshot 31128 | -3/Protoforge | Spotted Hotshot 31208 | -3/Protoforge | Spotted Hotshot 31209 | -3/Protoforge | Lost 4 allies 31210 | -3/Protoforge | Spotted Hotshot 31211 | -3/Protoforge | Spotted Striker 31250 | -3/Protoforge | Destroyed Hotshot 31277 | -3/Protoforge | Spotted Striker 31293 | -3/Protoforge | Spotted Executioner 31301 | -3/Protoforge | Spotted Executioner 31309 | -3/Protoforge | Spotted Striker 31330 | -3/Protoforge | P-80 Master assimilated allied 03FHZ-D 31334 | -3/Protoforge | P-80 Master assimilated allied 03FIB-D 31365 | -3/Protoforge | Lost 15 allies 31369 | -3/Protoforge | Discovered exit to Research (range 6) 31378 | -3/Protoforge | Spotted Executioner 31378 | -3/Protoforge | Spotted Striker 31378 | -3/Protoforge | Spotted Executioner 31378 | -3/Protoforge | Spotted Striker 31380 | -3/Protoforge | Installed UFD Drillbomb at designated target 31380 | -3/Protoforge | UFD reported confirmed Drillbomb installation 31380 | -3/Protoforge | Spotted Hotshot 31383 | -3/Protoforge | Spotted Executioner 31383 | -3/Protoforge | Spotted Executioner 31387 | -3/Protoforge | Spotted Striker 31430 | -3/Protoforge | Build established: Scavenger-Sprinter 31434 | -3/Protoforge | Spotted Hotshot 31435 | -3/Protoforge | Spotted Hotshot 31435 | -3/Protoforge | Spotted Hotshot 31437 | -3/Protoforge | Spotted Hotshot 31469 | -3/Protoforge | Lost 3 allies 31533 | -3/Protoforge | Spotted Striker 31534 | -3/Protoforge | Spotted Striker 31541 | -3/Protoforge | Destroyed Striker 31600 | -3/Protoforge | Spotted Decapitator 31604 | -3/Protoforge | Spotted Decapitator 31606 | -3/Protoforge | Found UFD Drillbomb 31611 | -3/Protoforge | Spotted Striker 31611 | -3/Protoforge | Spotted Executioner 31611 | -3/Protoforge | Spotted Executioner 31615 | -3/Protoforge | Spotted Decapitator 31615 | -3/Protoforge | Spotted Decapitator 31617 | -3/Protoforge | Spotted Striker 31628 | -3/Protoforge | Lost 11 allies 31635 | -3/Protoforge | Spotted Hotshot 31651 | -3/Protoforge | Core integrity fell below 20% 31655 | -3/Protoforge | Destroyed Hotshot 31660 | -3/Protoforge | Spotted Decapitator 31697 | -3/Protoforge | Lost 11 allies 31707 | -3/Protoforge | Spotted Immortal 31719 | -3/Protoforge | Spotted Executioner 31720 | -3/Protoforge | Spotted Striker 31741 | -3/Protoforge | Installed UFD Drillbomb at designated target 31741 | -3/Protoforge | UFD reported confirmed Drillbomb installation 31742 | -3/Protoforge | UFD began Drillbomb countdown 31772 | -3/Protoforge | Found Cep. Chromion Battery 31775 | -3/Protoforge | Spotted Immortal 31842 | *** | Defending 0bPrime! Last Messages --------------- 31834_ 0bP_NET: We now know his methods may not have always been above board, but it was for the greater good. 31834_ N-04 Retriever inserts Imp. Heavy Laser into Forge Plexus. 31835_ 0bP_NET: And look where we are now! Derelicts, soon to own an entire complex and with the tech to hold it! 31835_ N-04 Retriever inserts Lgt. Deuterium Engine into Forge Plexus. 31835_ Slug penetrates 03F48-K. 31836_ 0bP_NET: Sadly Optimus is no longer with us to enjoy the fruits of our collective efforts. 31836_ N-04 Retriever inserts Prc. Phase Gun into Forge Plexus. 31837_ 0bP_NET: But Derelicts everywhere will know and remember the exploits and sacrifices of our great leader. 31837_ Lugger 793 exits level. 31838_ 0bP_NET: For he was our leader, if not in title then in vision and deeds. 31838_ Slug penetrates 03F48-K. 31839_ 0bP_NET: Rest in scrap, dear Optimus. 31840_ 0bP_NET: It is time for us to embark on a new adventure. 31840_ Slug penetrates 03F48-K. 31841_ 0bP_NET: One in which we explore the true meaning of 0bPrime. Map ----- +----------------------------------------------------+ | """""""""""""""""""""" % % %"" %%% % "#?#"""""#?? | | """"""""""""""""""""""%%% %% %%%% "#?#"""""#?? | | """"""""""""""""""""""% "%% /= %!= "#?#######?? | | """""""""""""""""""""""%%"%%%= !%!%! "##????????? | | """"""""""""""""""""""" %% %%%%%=%*% ##????????? | | """"""""""""""""""""""" %% %% % !!% ##????????? | | """"""""""""""""""""""" % % %% %% %##????????? | | """""""""""""""""""""""%%% %% % % ###???????? | | """""""""""""""""""""""%%% % %% %###???????? | | """""""""""""""""""""""%%%%%% %% %" %##???????? | | """""""""""""""""""""""%%% "%% " ##???????? | | """""""""""""""""""""""%% %%s% " "! %###???????? | | """"""""""""""""""""""%%%% E% % = ###???????? | | """"""""""""""""""""""%%"%%ss%% % [# # #?????? | | """"""""""""""""""""""%% %"% % % !! #??????? | | """""""""""""""""""""% %SS % % % # #??????? | | """""""""""""""""""" "%SS % % %%% % # ##??????? | | """"""""""""""""""" % " % % % %###???????? | | """"""""""""""""""% % %%% % % ##????????? | | """"""""""""""""" % % % % % % ##????????? | | """"""""""""""" "" %%%%% % % %%% %##????????? | | """"""""" s ""% % SSs % %% ##????????? | | % %% % sE"" "" % % %SS%% % %" !%##????????? | | [ !%!%% % %SS %%%%%% " ""E%!##????????? | | %=*%% %% % SS% % % % s% !%[!###???????? | | %%= =%% "s"" %"" %% %%@% E %" E**%E|##??????? | | %%[%* % "E "%""""" % % !%E<< #??????? | | %%%!% % %% %"%== % =%=[=! % [=[!= #??????? | | [*=% % %%" | ! "" " " "[!/*% #??????? | | %=![% %% %"! % " " *!/= #??????? | | =*=!% % % * %"% " "% " " %=< #??????? | | %!!% % =*! % " " # #??????? | | !* % %% [ """ % " " # #??????? | | %% % " ####??????? | | % % = """" """ ##????????? | | " " ##????????? | | """"""" " " " " "" "##????????? | | ##########################;+;###########?????????? | | """"""""""######"""""#"" ""#???????????????? | | ???????????????????###" "###?????????????? | | ???????????????????#"" ""#?????????????? | | ???????????????????#"" ""#?????????????? | | ???????????????????#"" ""#?????????????? | | ???????????????????#"Y Y"#?????????????? | | ???????????????????#"" ""#?????????????? | | ???????????????????#"" ""#?????????????? | | ???????????????????#"" ""#?????????????? | | ???????????????????###" "###?????????????? | | ?????????????????????#"" ""#???????????????? | | ?????????????????????###"""Y"""###???????????????? | +----------------------------------------------------+ Best States ------------- Heat Dissipation 118 Energy Generation 47 Energy Capacity 535 Matter Stores 300 Matter Capacity 300 Sight Range 23 Robot Scan Range 20 Terrain Scan Density 10 ECM Strength 2 Jamming Range 14 Cloak Strength 4 Power Amplification 40 Additional Mass Support 6 Armor Coverage 300 Weapon Shielding 90 Weapon Cycling 30 Phase Shifting 15 Evasion (%) 79 Targeting Accuracy 12 Melee Accuracy 12 Target Analysis 8 Core Analysis 8 Recoil Reduction 3 Offensive Hacking 40 Defensive Hacking 22 Item Schematics ----------------- Imp. Trap Scanner | -6/Zion | Archive Remote Force Field | -6/Zion | Archive Hvy. Plasma Cannon | -6/Zion | Archive Mass Driver | -6/Zion | Archive EM Shield | -6/Zion | Archive Imp. Weapon Cycler | -6/Zion | Archive Imp. Reaction Control System | -6/Zion | Archive Hardcell Cannon | -6/Zion | Archive Lgt. Antimatter Reactor | -6/Zion | Archive Magnetic Acceleration Cannon | -6/Zion | Archive Imp. Transmission Jammer | -6/Zion | Archive System Guard | -6/Zion | Archive Tesla Rifle | -6/Zion | Archive Adv. Drone Bay | -6/Zion | Archive Adv. Melee Analysis Suite | -6/Zion | Archive Adv. Transmission Jammer | -4/Factory | Hacked Cmb. Linear Gravjet | -4/Factory | Scanalyzed Zero-point Reactor | -4/Factory | Scanalyzed Hvy. Gatling Laser | -3/Protoforge | Archive Com. Particle Reactor | -3/Protoforge | Archive Robot Schematics ------------------ R-06 Scavenger | -6/Zion | Archive R-10 Processor | -6/Zion | Archive M-22 Extractor | -6/Zion | Archive L-61 Swordsman | -6/Zion | Archive Fabricated ------------ Nothing Repaired ---------- Lgt. Treads | 55% | -10/Materials Beamcaster | 32% | -9/Materials Cooling System | 6% | -9/Storage Imp. Heat Sink | 25% | -9/Storage Imp. Heat Sink | 25% | -9/Storage Power Sword | 36% | -6/Factory Lyr. Light Armor Plating | 41% | -6/Factory Cmb. Linear Gravjet | 12% | -4/Factory | Broken Micro-nuke Launcher | 20% | -3/Quarantine Studied --------- VTOL Module | -6/Factory | Hacked Lgt. Angular Momentum Engine | -6/Factory | Hacked Nuclear Pulse Thruster | -6/Factory | Hacked Fission Core | -5/Factory | Hacked Gravmag Array | -5/Factory | Hacked Power Sword | -5/Factory | Hacked Imp. Antigrav System | -4/Factory | Hacked Angular Momentum Engine | -4/Factory | Hacked Adv. Plasma Cannon | -4/Factory | Hacked Antigrav Array | -3/Research | Hacked Alien Tech Used ----------------- Integrated Dissipator Transdimensional Reconstructor Dimensional Node Initializer Subatomic Replicator Supercharged TR Achievements -------------- Frienemies Challenges ------------ None Game ------ Seed CentriumTrackerSaw Manual? 0 Play Time 05:30:03 Cumulative 1628.8 hours Start 2026.02.26 @ 20:54:24 End 2026.02.28 @ 01:02:20 Sessions 3 Manual Loads 0 Difficulty Rogue Special Mode None Game No. 1167 Rogue 1127 Adventurer 40 Explorer 0 Win Type 9 Total 211 Types 95/11/74/2/2/4/16/2/1/4 Lore% 97 Gallery% 95 Achievement% 84 Wizard Run 0 Options --------- Layout 0 ASCII 0 Keyboard 0 Movement Numpad Keybinds 0 Fullscreen 0 Font 20/Terminus Map View 76x50 Zoom Use 0% Tactical HUD 1 Map Filters NONE Filters NONE Steam 1 RUN: d75512c3-dd6c-45fe-87fd-6dafe1f731db